Cogmind - Beta 16 X2 @@@ ROGUE MODE // 2025.10.12 @ 02:41:17 Player: Zaros426 Result: Exoskeleton Destroyed Performance ------------- Evolutions (8) 4000 Regions Visited (23) 4600 Robots Destroyed (295) 1475 Value Destroyed (13485) 13485 Prototype IDs (92) 1840 Alien Tech Used (20) 4000 Bonus (22916) 22916 TOTAL SCORE: 52316 Bonus ------- Triggered Max Security 1000 High Alert Combat Kills 850 Follower Combat Kills 5013 Destroyed Unchained 1000 Network Hubs Disabled 400 Registered with UFD 300 Met Optimus in HQ 500 Met Zhirov 300 Built Enhanced Grunts 300 A7 Reached Mainframe 300 Met R17 at Cetus 500 Used Core Reset Matrix 3000 Hacked Protovariant 500 Met R17 at Research 2000 Scanned by Researcher 500 Pursued by Intercept 500 Acquired SGEMP 2000 Integrated Exoskeleton 5000 Friendly Fire -1047 Cogmind --------- Core Integrity 0/1450 Matter 300/300 Energy 460/480 System Corruption 11% +Membrane Temperature Cool (0) +ITN Movement Walking (30) +NEM 1 Location -2/Section 7 Parts ------- > --- POWER (1) -------- Cooled Antimatter Reactor > --- PROPULSION (3) --- Sigix Exoskeleton > --- UTILITY (3) ------ Graphene Brace Spacefold Activator > --- WEAPON (2) ------- Sigix Broadsword > --- INVENTORY (5) ---- Experimental Energy Well (600) Sigix Sheargun Sigix Sheargun Sigix Broadsword Peak State ------------ > --- POWER ------------ Cooled Antimatter Reactor > --- PROPULSION ------- Sigix Exoskeleton > --- UTILITY ---------- Experimental Energy Well Graphene Brace Spacefold Activator > --- WEAPON ----------- Sigix Broadsword > --- INVENTORY -------- Integrity Redistributor Sigix Sheargun Sigix Sheargun Sigix Broadsword [Rating: 235] Favorites ----------- Power Quantum Reactor Engine Ion Engine Power Core Neutrino Core Reactor Quantum Reactor Propulsion Armored Leg Treads Light Treads Leg Armored Leg Wheel Armored Huge Wheel Hover Unit Improved Antigrav System Flight Unit Cooled Nuclear Pulse Thruster Utility Graphene Brace Device Graphene Brace Storage High-capacity Storage Unit Processor Spectral Analyzer Hackware Improved System Shield Protection Improved Medium Armor Plating Artifact Core Physics Calibrator Weapon Advanced KE Penetrator Energy Gun EM Pulse Gun Energy Cannon Subdweller Beam Cannon Ballistic Gun Advanced KE Penetrator Ballistic Cannon Battle Cannon Launcher Grenade Launcher Special Weapon CPS Tube Impact Weapon Powered Hammer Slashing Weapon Greatsword Piercing Weapon Enhanced Force Lance Special Melee Weapon Datajack Build | -11 -10 -10 -10 -9 -9 -6 -6 -6 -6 -6 -5 -5 -5 -5 -4 -4 -4 -4 -3 -3 -2 -2 -2 ------- Run | Yrd Mat Min Sub Rec Scr Fac Ext Cet Arc Hub Fac Upp Upp Zhi Pro Fac Was Fac Res Tes Res Qua Sec Slots Evolved 16 | . . . . . . 8 . . . . 2 . . . . 2 . . 2 . 2 . . Power 1 | . . . . . . . . . . . . . . . . 1 . . . . . . . Propulsion 6 | . . . . . . 3 . . . . 1 . . . . . . . 1 . 1 . . Utility 9 | . . . . . . 5 . . . . 1 . . . . 1 . . 1 . 1 . . Weapon . | . . . . . . . . . . . . . . . . . . . . . . . . Parts Attached 365 | 7 18 1 10 . 7 27 11 7 3 9 6 9 7 4 9 23 19 11 57 34 7 33 46 Power 47 | 1 3 . 1 . 1 2 1 2 . . . 4 2 1 . 3 2 1 6 1 2 6 8 Engine 8 | 1 3 . 1 . 1 1 . . . . . 1 . . . . . . . . . . . Core 10 | . . . . . . 1 1 . . . . 3 2 . . . 1 1 . . . 1 . Reactor 29 | . . . . . . . . 2 . . . . . 1 . 3 1 . 6 1 2 5 8 Propulsion 89 | 2 3 . 3 . 1 7 . 1 . 2 2 1 2 2 4 4 5 3 15 6 1 14 11 Treads 31 | . 3 . 3 . . . . 1 . . 1 1 . . . 2 2 1 10 5 1 . 1 Leg 16 | 2 . . . . 1 7 . . . 2 1 . . 1 . . . 1 . 1 . . . Wheel 3 | . . . . . . . . . . . . . 1 . . 1 . 1 . . . . . Hover 27 | . . . . . . . . . . . . . 1 . 1 1 2 . . . . 14 8 Flight 12 | . . . . . . . . . . . . . . 1 3 . 1 . 5 . . . 2 Utility 148 | 1 3 1 2 . 2 12 7 1 3 5 3 4 3 1 2 11 9 5 23 17 3 9 21 Device 62 | 1 . 1 . . 2 3 1 . 1 2 1 1 2 . . 4 4 4 12 8 1 4 10 Storage 18 | . 2 . 1 . . . 1 . . 1 . . 1 . 1 . . 1 2 1 . 1 6 Processor 13 | . . . . . . 2 2 . . . . 2 . . . 1 . . 4 1 . . 1 Hackware 19 | . . . . . . 2 1 . 1 2 2 . . . . 4 . . . 4 1 2 . Protection 34 | . 1 . 1 . . 5 2 1 1 . . 1 . 1 1 2 5 . 5 3 1 2 2 Artifact 2 | . . . . . . . . . . . . . . . . . . . . . . . 2 Weapon 81 | 3 9 . 4 . 3 6 3 3 . 2 1 . . . 3 5 3 2 13 10 1 4 6 Energy Gun 18 | 2 2 . . . . 1 . 1 . . . . . . 1 1 . . 5 3 . . 2 Energy Cannon 13 | . . . 2 . . 2 . . . 1 . . . . 1 . 2 . 3 1 . 1 . Ballistic Gun 13 | 1 2 . 1 . . 1 . 2 . . . . . . . . . . 4 1 . . 1 Ballistic Cannon 17 | . 2 . 1 . . 1 2 . . . . . . . . 2 1 1 . 4 . 2 1 Launcher 9 | . 2 . . . 1 . 1 . . . . . . . . 1 . 1 . 1 1 . 1 Special Weapon 3 | . 1 . . . . . . . . 1 . . . . . 1 . . . . . . . Impact Weapon 1 | . . . . . . 1 . . . . . . . . . . . . . . . . . Slashing Weapon 5 | . . . . . 1 . . . . . 1 . . . 1 . . . . . . 1 1 Piercing Weapon 1 | . . . . . . . . . . . . . . . . . . . 1 . . . . Special Melee Weapon 1 | . . . . . 1 . . . . . . . . . . . . . . . . . . Unidentified Prototypes 54 | . . 1 . . . . . 4 . 2 . 1 1 4 . . 2 3 7 14 1 6 8 Parts Lost 111 | . 1 . 2 . . 1 1 1 . 3 . 5 6 . 8 16 1 12 11 10 . 9 24 Power 11 | . . . 1 . . . . . . . . 2 1 . 1 . . . 1 1 . 1 3 Propulsion 40 | . . . . . . . . . . 2 . . 2 . 3 4 1 4 3 6 . 3 12 Utility 42 | . . . 1 . . . 1 1 . 1 . 2 2 . 2 8 . 4 5 3 . 4 8 Weapon 18 | . 1 . . . . 1 . . . . . 1 1 . 2 4 . 4 2 . . 1 1 Highest Loss Streak 13 | . 1 . 2 . . 1 1 1 . 3 . 3 4 . 3 13 1 12 6 4 . 8 7 To Critical Strikes 1 | . . . . . . . . . . . . . . . . 1 . . . . . . . Average Backups 13 | . 10 15 14 17 10 18 18 18 18 18 18 15 14 20 21 15 3 3 13 18 17 8 2 Power . | . . . . . . . . . . . . . 1 1 . . . . . . . . . Propulsion 2 | . 2 4 3 4 2 2 3 3 3 2 . 1 1 4 5 2 . . 3 6 5 2 . Utility 6 | . 3 5 6 8 5 11 11 11 12 12 13 10 9 13 12 9 1 1 7 4 4 1 . Weapon 2 | . 4 4 3 4 2 1 1 2 2 2 4 3 2 1 1 2 1 1 . 6 6 3 1 Tool/Special . | . . . . . . . . . . . . . . . . . . . . . . . . Unused Backups 67 | . 3 2 . 1 18 7 1 1 1 4 1 1 1 3 . 6 . 1 6 7 1 1 1 Power 4 | . . . . . 2 . . . . . . . . 1 . 1 . . . . . . . Propulsion 13 | . . . . . 3 2 . . . 2 . . . . . 1 . . 1 4 . . . Utility 40 | . 1 2 . 1 8 5 1 . 1 2 1 1 1 2 . 4 . 1 5 2 1 . 1 Weapon 6 | . 2 . . . 3 . . . . . . . . . . . . . . 1 . . . Tool/Special 4 | . . . . . 2 . . 1 . . . . . . . . . . . . . 1 . Average Slot Usage (%) 80 | . 98 100 96 100 59 78 92 93 94 93 90 87 83 65 74 83 69 81 83 85 77 80 68 Engine 4 | . 14 14 11 14 6 1 . . . . . . . . . . 2 . . . . . . Core 1 | . . . . . . 3 5 . . . . 2 4 4 1 . 3 4 . . . . . Reactor 2 | . . . . . . . . 4 5 5 5 . . . 3 7 3 4 7 8 7 7 7 Treads 12 | . 26 28 28 28 11 . . . . . 4 5 . . . 4 7 13 24 24 15 6 . Leg 7 | . 1 . . . 6 22 23 22 23 23 23 29 20 18 9 . . . . . . . 2 Hover 1 | . . . . . . . . . . . . . 1 2 . . 5 1 . . . 14 13 Device 12 | . 9 . 4 14 11 6 7 5 6 9 11 11 21 16 19 10 18 33 19 15 12 16 11 Storage 7 | . 13 14 13 14 7 5 6 6 6 5 5 5 5 5 9 6 . . 4 4 5 5 7 Processor 3 | . . . . . . 7 10 17 13 4 . 7 5 5 . . . . 6 9 7 4 5 Hackware 4 | . . . . . . 8 13 11 11 21 24 7 5 5 5 17 . . . 7 13 13 4 Protection 4 | . 4 13 8 . . 8 9 9 11 7 2 4 . . 1 6 13 9 2 4 4 1 1 Energy Gun 2 | . 7 27 4 . . . . 2 . . . . . . . 2 3 . 7 4 4 3 1 Energy Cannon 2 | . . . 6 14 2 1 . . . 1 . 1 1 . 5 1 6 7 . . . . . Ballistic Gun 1 | . 5 . 4 . . . . 6 10 8 4 2 4 . 4 . . . 2 . . . . Ballistic Cannon 3 | . 7 . 7 14 5 1 4 1 . . . . . . . 8 2 2 . 3 4 2 . Launcher 1 | . 7 . 4 . . . . . . . . . . . . . . 1 . . . . . Slashing Weapon 1 | . . . . . 1 1 . . . . 2 2 2 . 2 . . . . . . 1 4 Peak Build Rating 235 | 6 8 16 16 16 36 82 91 108 108 108 103 108 107 105 109 121 142 150 157 178 205 218 235 Average Rating 80 | 4 7 8 12 15 21 74 87 100 105 105 94 96 92 78 92 108 107 141 122 153 193 190 176 On Entrance 81 | . 6 8 9 16 15 31 79 91 102 108 90 102 93 99 105 102 47 142 32 133 178 185 190 Avg Prop Armor Cover (%) 2 | . . . . . . . . . . . 5 5 10 12 9 9 4 1 6 . . . 1 Naked Turns 106 | . . . . . 106 . . . . . . . . . . . . . . . . . . Heaviest Build 254 | 6 34 33 57 57 60 100 105 94 101 101 91 91 242 242 254 124 102 136 180 174 183 184 89 Greatest Support 265 | 20 40 40 40 40 55 107 103 103 103 103 104 104 104 76 28 75 145 215 207 233 265 265 107 Greatest Overweight (x) 13 | . . . 1 1 13 . 1 1 . . 1 2 8 8 9 6 4 . 1 1 . 1 1 Average Overweight (x) . | . . . . 1 . . . . . . . . 1 4 7 2 . . . . . . . Largest Inventory Capacity 35 | 5 15 15 20 20 20 20 20 20 20 20 20 20 35 35 35 20 5 20 25 25 25 25 15 Average Capacity 17 | 5 12 15 15 20 13 20 20 20 20 20 20 20 22 35 33 19 5 6 19 25 25 13 5 Most Carried 35 | 3 15 15 20 20 20 20 20 20 20 20 20 20 33 35 35 20 5 10 25 25 25 25 5 Average Carried 16 | . 10 14 15 19 12 19 19 19 19 19 19 19 20 34 31 19 5 5 15 22 24 13 4 Final Capacity 35 | 5 15 15 20 20 20 20 20 20 20 20 20 20 35 35 20 5 5 5 25 25 25 5 5 Final Carried 35 | 3 15 15 20 20 20 20 20 20 20 17 20 20 33 35 20 5 5 5 22 25 25 5 5 Class Distribution -------------------- 43% | Mutant 9% | Scavenger-Tank 8% | Hacker-Tank 8% | Hacker-Mutant 6% | Hauler-Mutant 5% | Scavenger-Mutant 4% | Commander-Mutant 3% | Alien-Mutant Dominant Class ---------------- Mutant | -10/Materials Mutant | -10/Mines Mutant | -10/Subcaves Mutant | -9/Recycling Mutant | -9/Scraptown Hacker-Mutant | -6/Factory Hacker-Mutant | -6/Extension Commander-Mutant | -6/Cetus Commander-Mutant | -6/Archives Commander-Mutant | -6/Hub_04(d) Wizard-Mutant | -5/Factory Scavenger-Mutant | -5/Upper Caves Mutant | -5/Upper Caves Hauler-Mutant | -5/Zhirov Hauler-Mutant | -4/Proximity Caves Hacker-Tank | -4/Factory Scavenger-Tank | -4/Waste Tank | -4/Factory Scavenger-Tank | -3/Research Scavenger-Tank | -3/Testing Hacker-Tank | -2/Research Hacker-Tank | -2/Quarantine Alien-Mutant | -2/Section 7 Resources | -11 -10 -10 -10 -9 -9 -6 -6 -6 -6 -6 -5 -5 -5 -5 -4 -4 -4 -4 -3 -3 -2 -2 -2 ----------- Run | Yrd Mat Min Sub Rec Scr Fac Ext Cet Arc Hub Fac Upp Upp Zhi Pro Fac Was Fac Res Tes Res Qua Sec Matter Collected 12749 | 281 753 241 410 81 558 397 566 173 115 521 142 438 220 . 490 567 512 690 922 2021 575 1259 817 Remotely . | . . . . . . . . . . . . . . . . . . . . . . . . Salvage Created 13887 | 128 823 154 342 308 . 1043 1108 54 173 388 178 969 188 . 616 575 124 884 727 1379 592 2038 1096 Parts 648 | 14 60 9 27 11 . 42 29 2 14 6 10 29 14 . 29 22 5 27 27 75 33 105 58 Haulers Intercepted 11 | . 2 . . . . 1 . . . 1 . . . . . . . . 4 2 . . 1 Recyclers Shooed 11 | . 1 2 . . . 1 1 . . . . . . . . 1 . 3 2 . . . . Parts Field Recycled 58 | . . . . . 58 . . . . . . . . . . . . . . . . . . Retrieved Matter 360 | . . . . . 360 . . . . . . . . . . . . . . . . . . Parts Self-Destructed 73 | . . . 12 . . . . . . . . 25 10 . 26 . . . . . . . . Prevented 14 | . . . . . . . . . . . . 9 1 . 4 . . . . . . . . Parts Restored . | . . . . . . . . . . . . . . . . . . . . . . . . Kills | -11 -10 -10 -10 -9 -9 -6 -6 -6 -6 -6 -5 -5 -5 -5 -4 -4 -4 -4 -3 -3 -2 -2 -2 ------- Run | Yrd Mat Min Sub Rec Scr Fac Ext Cet Arc Hub Fac Upp Upp Zhi Pro Fac Was Fac Res Tes Res Qua Sec Combat Hostiles Destroyed 205 | 1 18 2 13 . . 7 19 1 . 4 . 12 4 . 14 12 . 15 6 21 8 34 14 Melee 41 | . . . . . . 4 5 . . . . 4 3 . . 1 . . . . . 12 12 Guns 46 | 1 1 2 . . . 1 . 1 . 3 . 3 1 . 12 1 . . 6 7 5 1 1 Cannons 68 | . 4 . 9 . . . . . . 1 . . . . 1 10 . 5 . 14 3 21 . AOE 36 | . 13 . 4 . . . 4 . . . . 4 . . 1 . . 9 . . . . 1 Classes Destroyed 27 | 2 8 . 2 . . 3 3 . . . . 3 1 . 1 . 1 . . 2 . 1 . Worker 9 | . 5 . . . . . . . . . . . . . . 1 . 2 . 1 . . . Builder 13 | . 4 . . 1 . 1 . . . . 1 . . . . 3 . 1 . 2 . . . Tunneler 10 | 4 1 . . . . 2 . . . . . . . . . . . 1 1 . 1 . . Hauler 11 | . 2 . . . . 1 . . . 1 . . . . . . . . 4 2 . . 1 Recycler 17 | . 2 1 . 2 . 3 . . . . 1 . . . . . . 3 1 1 1 1 1 Minesweeper 3 | . . . . . . . . . . . . 2 1 . . . . . . . . . . Mechanic 1 | . 1 . . . . . . . . . . . . . . . . . . . . . . Operator 10 | . 1 . . . . . 1 . 3 . . . . . . . . . 1 1 1 1 1 Drone 2 | . . . . . . . . . . . . . . . 2 . . . . . . . . Watcher 10 | . 3 . . . . 1 . . . 2 2 . . . . . . . . 1 . 1 . Swarmer 54 | . 5 1 4 . . . 3 . . . . 8 4 . 10 4 . 3 5 5 . . 2 Grunt 51 | 1 13 1 2 . . . 7 1 . 3 . 2 . . . 2 . 1 . 7 . 8 3 Brawler 1 | . . . . . . . . . . . . 1 . . . . . . . . . . . Duelist 2 | . . . . . . . . . . . . 1 . . . 1 . . . . . . . Protector 2 | . . . . . . . 2 . . . . . . . . . . . . . . . . Researcher 1 | . . . . . . . . . . . . . 1 . . . . . . . . . . Sentry 20 | . . . . . . 2 5 . . 1 . . . . . 2 . 2 . 2 4 . 2 Specialist 1 | . . . . . . . 1 . . . . . . . . . . . . . . . . Hunter 18 | . . . . . . 3 . . . . . . . . 2 2 . 3 1 . . 7 . Programmer 42 | . . . . . . 2 . . . . . . . . . 1 . 6 . 4 4 18 7 Behemoth 1 | . . . . . . . 1 . . . . . . . . . . . . . . . . Striker 1 | . . . . . . . . . . . . . . . . . . . . 1 . . . Alpha 7 2 | . . . . . . . . . . . . . . . . . . . . 2 . . . Fortress 1 | . . . . . . . . . . . . . . . . . . . . . . 1 . Subdweller 7 | . . . 7 . . . . . . . . . . . . . . . . . . . . Zionite 1 | . . . 1 . . . . . . . . . . . . . . . . . . . . Decomposer 1 | . . . . . . . . . . . . 1 . . . . . . . . . . . Packrat 2 | . . . . . . . . . . . . 2 . . . . . . . . . . . Thug 2 | . . . 1 . . . . . 1 . . . . . . . . . . . . . . Martyr 2 | . . . . . . . . . . . . . . . . . 2 . . . . . . Best Kill Streak 15 | 5 6 1 4 3 . 3 5 1 1 3 1 6 3 . 5 5 . 15 3 6 2 11 3 Combat Bots Only 11 | 1 3 1 4 . . 3 5 1 . 2 . 6 3 . 5 5 . 6 2 5 2 11 3 Max Kills in Single Turn 3 | 1 2 1 3 1 . 1 2 1 1 1 1 2 1 . 1 1 1 2 1 2 2 1 1 Gunslinging . | . . . . . . . . . . . . . . . . . . . . . . . . Exploded 2 | . 2 . 2 . . . 2 . . . . 2 . . 1 . . 2 . . . . 1 Melee 1 | . . . . . . 1 1 . . . . 1 1 . . 1 . . . . . 1 1 Uniques/NPCs Destroyed 1 | . . . . . . . . . . . . . . . . . . 1 . . . . . DW-4LL (-4/Factory) Combat | -11 -10 -10 -10 -9 -9 -6 -6 -6 -6 -6 -5 -5 -5 -5 -4 -4 -4 -4 -3 -3 -2 -2 -2 -------- Run | Yrd Mat Min Sub Rec Scr Fac Ext Cet Arc Hub Fac Upp Upp Zhi Pro Fac Was Fac Res Tes Res Qua Sec Hostile Shots Fired 3393 | 5 51 6 39 . . 180 376 8 10 107 50 155 64 . 170 251 1 244 211 249 32 543 641 Missed 1114 | 1 11 3 10 . . 69 137 2 3 46 23 58 12 . 64 88 . 107 72 52 5 113 238 Hits 2279 | 4 40 3 29 . . 111 239 6 7 61 27 97 52 . 106 163 1 137 139 197 27 430 403 Melee 34 | . . . . . . . . . . . . 1 . . . 2 1 . 28 2 . . . Projectile 2245 | 4 40 3 29 . . 111 239 6 7 61 27 96 52 . 106 161 . 137 111 195 27 430 403 AOE 8 | . . . . . . 1 . . . 2 . . . . . . . . 3 . . . 2 Critical Strikes 96 | . 1 . 1 . . 1 1 1 . 6 2 2 . . 2 7 . 9 6 13 . 21 23 Actively Blocked 79 | . . . . . . . . . . 5 . . . . 2 2 . 9 6 13 . 21 21 Part Disruptions 4 | . . . . . . . . . . . . . . . . . . . . . . 3 1 Damage Taken 34382 | 42 487 23 516 . . 1234 1251 82 101 1026 353 1568 770 . 1204 2523 187 2401 3647 2622 343 6915 7087 Core 3818 | 22 60 6 69 . . 97 56 10 23 127 31 216 70 . 146 174 43 202 850 171 . 370 1075 Absorbed by Shields 8780 | . . . . . . 44 944 87 75 283 87 43 77 . 539 692 . 385 444 1659 352 1684 1385 Reduced by Siege Mode 956 | . . . . . . . . . . . . . . . . . . 78 . 159 43 676 . Redirected to Shielding 257 | . . . . . . . . . . . . . . . 17 18 23 88 9 . . . 102 Ignored by Resistances 2607 | . . . . . . 106 467 6 . . . . . . . . . . . . . 672 1356 Regen/Repaired (Parts) 4194 | . 98 . . . . 162 . . . . 486 . . . . . 590 . . . . 225 2633 Core Remaining (%) 54 | 91 . . . . 37 . . . . 63 . . . . 53 . . 63 . 21 . . . Volleys Fired 891 | 11 93 7 68 37 . 13 30 9 37 37 4 21 11 . 43 56 9 83 58 115 39 93 17 Largest 3 | 2 2 2 2 2 . 2 1 2 2 2 2 2 3 . 3 3 3 3 3 3 2 2 2 Hottest 428 | 60 100 80 113 113 . 118 44 240 240 125 125 125 160 . 160 191 287 287 428 301 148 300 240 Shots Fired 1352 | 22 126 14 85 41 . 21 30 12 55 67 7 34 20 . 69 105 16 98 103 207 56 143 21 Gun 576 | 22 47 14 10 . . 13 . 8 55 52 5 22 15 . 47 18 6 . 98 79 18 28 19 Cannon 703 | . 44 . 64 41 . 8 23 4 . 14 2 9 5 . 22 87 10 84 5 128 38 115 . Launcher 69 | . 32 . 11 . . . 7 . . . . 3 . . . . . 14 . . . . 2 Special 4 | . 3 . . . . . . . . 1 . . . . . . . . . . . . . Kinetic 743 | 11 73 . 34 9 . 9 23 10 53 52 5 22 15 . 46 85 2 19 42 107 38 88 . Thermal 474 | 11 3 . 36 32 . 9 . 2 2 14 2 9 5 . 23 20 14 65 61 82 18 55 11 Explosive 59 | . 32 . 11 . . . . . . . . . . . . . . 14 . . . . 2 Electromagnetic 67 | . 18 14 4 . . 3 7 . . . . 3 . . . . . . . 18 . . . Slashing 8 | . . . . . . . . . . . . . . . . . . . . . . . 8 Robot Hit Streak 48 | 4 9 3 8 6 . 3 7 4 5 10 4 6 5 . 8 9 9 6 16 34 30 48 13 Robot Miss Streak 6 | 2 3 2 2 2 . 3 4 1 3 4 . 4 1 . 6 5 3 4 2 6 . 2 1 Penetration Max 1 | . . . . . . . . . 1 1 . . . . 1 . . . 1 . . . . Secondary Targets 3 | . . . . . . . . . . . . . . . 1 . . . 2 . . . . Max Gunslinging Chain 1 | . . . . . . . . . . . . . . . 1 . . . 1 . . . . Shots Hit Robots 900 | 12 52 7 28 8 2 36 107 8 21 32 5 39 16 . 34 53 10 36 66 123 30 132 43 Core Hits 431 | 7 50 6 25 5 . 14 30 4 8 11 2 23 8 . 18 27 5 40 24 41 14 48 21 Critical Kills 18 | . . . . . . 1 1 . 2 1 . 1 . . 6 . . 2 1 3 . . . Critical Parts Destroyed 34 | . 1 . . . . 4 6 . 4 2 . 1 . . 1 . . . 7 3 . 5 . Critical Strikes 101 | . 1 . 1 . . 5 9 . 6 3 . 5 2 . 7 9 . 3 10 18 . 19 3 Burn 3 | . . . . . . . . . . . . . . . . 1 . . . 2 . . . Meltdown 2 | . . . . . . . . . . . . . . . . . . 2 . . . . . Destroy 48 | . 1 . . . . 1 . . 5 3 . 2 . . 7 . . . 10 6 . 13 . Blast 23 | . . . 1 . . . . . . . . . . . . 8 . 1 . 10 . 3 . Smash 14 | . . . . . . 4 9 . 1 . . . . . . . . . . . . . . Sever 11 | . . . . . . . . . . . . 3 2 . . . . . . . . 3 3 Melee Attacks 364 | . . . . . 2 43 106 9 1 . 14 29 11 . 1 1 . . 8 . . 50 89 Impact 91 | . . . . . . 22 59 9 1 . . . . . . . . . . . . . . Slashing 216 | . . . . . . 21 . . . . 14 29 11 . 1 1 . . . . . 50 89 Piercing 8 | . . . . . . . . . . . . . . . . . . . 8 . . . . Sneak Attacks 70 | . . . . . 2 8 48 . 1 . 2 4 . . . . . . . . . . 5 Combat Hostiles 2 | . . . . . . . . . . . . . . . . . . . . . . . 2 Follow-up Attacks . | . . . . . . . . . . . . . . . . . . . . . . . . Damage Inflicted 46146 | 140 2121 97 1159 189 . 1950 3221 230 691 1100 334 2360 593 . 934 2164 298 3574 2063 6318 1976 9962 4672 Guns 8429 | 140 394 95 104 . . 143 . 141 649 624 . 276 220 . 774 275 80 . 1847 1463 608 532 64 Cannons 19016 | . 405 . 472 189 . 98 258 89 . 426 36 165 59 . 160 1779 218 1698 85 4855 1368 6656 . Explosions 5583 | . 1322 . 583 . . . 1002 . . 50 38 296 . . . 69 . 1876 . . . . 347 Melee 13111 | . . . . . . 1709 1961 . 42 . 260 1623 314 . . 41 . . 131 . . 2774 4256 Ramming 7 | . . 2 . . . . . . . . . . . . . . . . . . . . 5 Kinetic 17180 | 37 629 . 374 108 . 58 258 201 649 624 . 276 220 . 774 1740 48 441 781 4538 1368 4056 . Thermal 9884 | 103 47 . 173 81 . 183 . 29 . 476 74 165 59 . 160 383 250 1342 1151 1468 608 3132 . Explosive 3979 | . 1275 . 583 . . . . . . . . . . . . . . 1774 . . . . 347 Electromagnetic 1904 | . 170 95 29 . . . 1002 . . . . 296 . . . . . . . 312 . . . Impact 2578 | . . . . . . 558 1961 . 42 . . . . . . . . 17 . . . . . Slashing 10483 | . . . . . . 1151 . . . . 260 1623 314 . . 41 . . . . . 2774 4320 Piercing 131 | . . . . . . . . . . . . . . . . . . . 131 . . . . Highest Corruption 32 | . . . . . . . . . . 9 1 1 1 1 2 29 29 32 . 11 3 11 11 Average Corruption 8 | . . . . . . . . . . 2 1 1 1 1 1 11 29 29 . 4 2 6 11 Corruption Purged 8 | . . . . . . . . . . . . . . . . . . . . 1 . 7 . Corruption Blocked 6 | . . . . . . . . . . . . . . . . 6 . . . . . . . Effects 347 | . . . . . . . . . . 1 . 9 5 3 23 2 53 79 . 23 11 55 83 Message Errors 90 | . . . . . . . . . . . . 1 1 2 6 . 16 22 . 3 5 16 18 Matter Fused 78 | . . . . . . . . . . 1 . 4 . . 3 1 8 15 . 9 3 8 26 Heat Flow Errors 32 | . . . . . . . . . . . . . 1 . 1 . 7 9 . 1 2 4 7 Energy Discharges 30 | . . . . . . . . . . . . 2 . . 3 . 6 7 . 3 . 5 4 Parts Rejected 7 | . . . . . . . . . . . . . . . . 1 . 2 . . . 1 3 Parts Fused 4 | . . . . . . . . . . . . . . . 1 . 1 . . . . 1 1 Data Loss (minor) 44 | . . . . . . . . . . . . 1 1 1 4 . 5 10 . 3 1 11 7 Data Loss (major) 17 | . . . . . . . . . . . . . 1 . 3 . 1 5 . 1 . 3 3 Misfires 9 | . . . . . . . . . . . . . . . . . 4 1 . 1 . 3 . Alerts 9 | . . . . . . . . . . . . 1 1 . 2 . 1 . . . . . 4 Misdirections 17 | . . . . . . . . . . . . . . . . . 3 4 . . . . 10 Weapon Failures 10 | . . . . . . . . . . . . . . . . . 1 4 . 2 . 3 . Overload Shots 11 | . . . . . . . . 1 2 . . . . . . . . . 3 . . . 5 Overflow Damage 4194 | . 24 . 13 . . 673 510 . 42 . 143 281 . . . 98 20 155 48 390 150 884 763 Projectiles 1344 | . 2 . 13 . . . 4 . . . . 31 . . . 98 20 50 . 390 150 586 . Explosions 130 | . 22 . . . . . . . . . . 3 . . . . . 105 . . . . . Melee 2720 | . . . . . . 673 506 . 42 . 143 247 . . . . . . 48 . . 298 763 Knockbacks 87 | . 3 . 1 . . 3 3 . . . . . . . . 13 1 4 . 35 5 19 . Impact 6 | . . . . . . 3 3 . . . . . . . . . . . . . . . . Kinetic 73 | . 3 . 1 . . . . . . . . . . . . 12 1 3 . 31 4 18 . Secondary 8 | . . . . . . . . . . . . . . . . 1 . 1 . 4 1 1 . Self-Inflicted Damage 178 | . 50 . . . . . . . . . . . . . . 35 . 91 . . . . 2 Shots 7 | . 4 . . . . . . . . . . . . . . 1 . 2 . . . . . Rammed 2 | . . 1 . . . . . . . . . . . . . . . . . . . . 1 Targets Rammed 2 | . . 1 . . . . . . . . . . . . . . . . . . . . 1 Kicked . | . . . . . . . . . . . . . . . . . . . . . . . . Crushed . | . . . . . . . . . . . . . . . . . . . . . . . . Highest Temperature 402 | 44 102 87 292 90 . 204 50 239 194 232 39 99 229 . 123 318 232 231 300 332 228 323 402 Average Temperature 73 | 23 33 30 59 33 . 79 14 94 56 85 21 34 88 . 16 118 59 54 80 79 30 104 127 Received Heat Transfer 3263 | 24 198 6 444 . . 105 267 40 16 93 40 184 22 . 30 137 . 281 105 294 28 340 609 Effects 11 | . . . . . . . . 5 . . . . . . . 4 . . . . . 1 1 Energy Bleed 1 | . . . . . . . . 1 . . . . . . . . . . . . . . . Interference 9 | . . . . . . . . 4 . . . . . . . 4 . . . . . 1 . Matter Decay 1 | . . . . . . . . . . . . . . . . . . . . . . . 1 Siege Activations 18 | . . . . . . . . . . . . . . . . 1 . 2 . 5 6 4 . Total Turns 372 | . . . . . . . . . . . . . . . . 4 . 22 . 183 44 119 . Longest Duration 80 | . . . . . . . . . . . . . . . . 4 . 16 . 65 13 80 . Martial Activations . | . . . . . . . . . . . . . . . . . . . . . . . . Shielding Activations . | . . . . . . . . . . . . . . . . . . . . . . . . Robots Disrupted 1 | . . 1 . . . . . . . . . . . . . . . . . . . . . Combat Hostiles . | . . . . . . . . . . . . . . . . . . . . . . . . Robots Corrupted 16 | . . . . . . 5 10 . . . . . . . . . . . . 1 . . . Combat Hostiles 12 | . . . . . . 2 10 . . . . . . . . . . . . . . . . Parts Fried 25 | . . . . . . 6 15 . . . . 1 . . . . . . . 3 . . . Impact Corruptions 31 | . . . . . . 10 17 . 1 . . . . . . . . . . 2 1 . . Robots Melted 2 | . . . . . . . . . . . . . . . . . . 2 . . . . . Combat Hostiles 1 | . . . . . . . . . . . . . . . . . . 1 . . . . . Parts Melted 6 | . . . . . . . . . . . . . . . . 1 . 1 2 2 . . . Heat Transferred 7146 | 225 50 . 222 111 . 350 . 37 . 50 50 . . . . 581 370 1030 1369 1739 518 444 . Parts Sabotaged . | . . . . . . . . . . . . . . . . . . . . . . . . Parts Stolen . | . . . . . . . . . . . . . . . . . . . . . . . . Parts Stripped . | . . . . . . . . . . . . . . . . . . . . . . . . Power Chain Reactions 4 | . 1 . . . . . . . . 1 1 . . . . 1 . . . . . . . Alert | -11 -10 -10 -10 -9 -9 -6 -6 -6 -6 -6 -5 -5 -5 -5 -4 -4 -4 -4 -3 -3 -2 -2 -2 ------- Run | Yrd Mat Min Sub Rec Scr Fac Ext Cet Arc Hub Fac Upp Upp Zhi Pro Fac Was Fac Res Tes Res Qua Sec Maximum Alert Level 5 | . 1 . . . . . 5 5 3 4 2 . . . . 3 . 2 1 1 . 1 5 Low Security (%) 66 | 100 26 100 . 100 . 100 46 . . 36 . . . . . . 100 55 58 94 100 86 87 Level 1 14 | . 73 . . . . . 3 . . 4 . . . . . 26 . 2 41 5 . 13 . Level 2 9 | . . . . . . . 7 . 1 15 100 . . . . 56 . 41 . . . . . Level 3 3 | . . . . . . . 14 . 98 11 . . . . . 16 . . . . . . . Level 4 2 | . . . . . . . 6 35 . 32 . . . . . . . . . . . . . Level 5 2 | . . . . . . . 20 64 . . . . . . . . . . . . . . . High Security . | . . . . . . . . . . . . . . . . . . . . . . . . Max Security 1 | . . . . . . . . . . . . . . . . . . . . . . . 11 Peak Influence 2355 | 30 340 113 . 75 . 109 2355 1769 868 1316 627 . . . . 751 79 602 284 216 104 260 1776 Initial 1309 | . 13 113 . 37 . . 35 1309 677 275 616 . . . . 751 79 . 271 22 31 54 141 Average 249 | 5 210 36 . 13 . 28 702 1592 814 628 508 . . . . 498 8 225 157 112 44 111 237 Influence Increases 15430 | 40 842 139 276 222 . 592 2964 689 270 1653 132 630 220 . 320 1225 82 1144 502 840 394 1267 987 Destroy 0b10 Robot/C 6020 | 20 360 100 160 . . 220 1280 280 80 620 . 240 80 . 240 260 . 420 120 420 160 680 280 Destroy 0b10 Robot/NC 530 | 20 95 5 . 25 . 50 25 10 15 40 20 25 5 . 20 20 . 35 35 40 15 15 15 Destroy Leader 998 | . 80 20 20 . . 64 124 20 . 160 4 20 . . 30 60 . 110 28 24 60 122 52 Allied During Kill 2409 | . . 14 6 . . 42 1199 310 95 637 . . . . . 9 . 97 . . . . . Trap Triggered on 0b10 10 | . . . . . . . 10 . . . . . . . . . . . . . . . . Successful Hack 522 | . 31 . . 6 . 81 30 14 . 3 25 . . . . 12 . 12 100 59 54 30 65 Select Force Hacks 270 | . 60 . . 150 . 60 . . . . . . . . . . . . . . . . . Disable Machine 855 | . 30 . . 15 . 15 60 15 60 120 30 . . . . . . 60 15 105 45 120 165 Destroy Structure 1416 | . 156 . . 26 . 30 41 25 20 73 38 . . . . 84 82 350 24 102 60 120 185 Advance Influence 750 | . . . . . . . . . . . . . . . . 750 . . . . . . . Partial Spotted 150 | . . . . . . . . . . . . . . . . . . . . 15 . . 135 Lose Combat Pursuer 1500 | . 30 . 90 . . 30 195 15 . . 15 345 135 . 30 30 . 60 180 75 . 180 90 Influence Decreases 15115 | 20 571 400 227 301 . 519 698 1334 1177 1182 976 750 514 . 317 1000 310 626 979 824 355 1111 924 Entered New Map 4289 | . 7 178 16 42 . . 38 1030 1017 512 642 154 57 . . 2 149 . 247 19 26 42 111 Time Decay 7757 | 20 554 222 191 259 . 416 516 214 160 270 334 546 397 . 287 368 116 336 622 570 329 579 451 Search Patrol Dispatched 400 | . . . . . . . . . . . . . . . . 300 . . . . . 100 . Lost Part 1002 | . 10 . 20 . . 10 10 10 . 30 . 50 60 . 30 160 5 120 110 85 . 90 202 Lost Ally 741 | . . . . . . 67 134 80 . 220 . . . . . 20 40 170 . . . . 10 Purge Threat 926 | . . . . . . 26 . . . 150 . . . . . 150 . . . 150 . 300 150 Squads Dispatched 112 | . 4 . . . . 11 7 2 . 8 3 . . . . 7 . 11 9 15 4 11 20 Investigation 27 | . 3 . . . . 6 2 2 . 1 . . . . . 2 . 2 4 2 2 1 . Extermination 28 | . . . . . . 3 . . . 1 1 . . . . 1 . 3 . 4 2 8 5 Reinforcement 25 | . 1 . . . . . 2 . . 6 1 . . . . 1 . 2 5 4 . 2 1 Assault 19 | . . . . . . 2 3 . . . 1 . . . . . . . . 1 . . 12 Garrison 11 | . . . . . . . . . . . . . . . . 3 . 4 . 4 . . . Intercept 2 | . . . . . . . . . . . . . . . . . . . . . . . 2 Searches Triggered 4 | . . . . . . . . . . . . . . . . 3 . . . . . 1 . Unchained Authorized 2 | . . . . . . . . . . . . . . . . 1 . 1 . . . . . Construction Impeded 4 | . . . . . . . 1 . . . . . . . . 1 . 1 1 . . . . Haulers Reinforced 4 | . . . . . . . . . . 1 . . . . . . . . 2 1 . . . Active Scanning Responses . | . . . . . . . . . . . . . . . . . . . . . . . . Cargo Convoy Interrupts . | . . . . . . . . . . . . . . . . . . . . . . . . Stealth | -11 -10 -10 -10 -9 -9 -6 -6 -6 -6 -6 -5 -5 -5 -5 -4 -4 -4 -4 -3 -3 -2 -2 -2 --------- Run | Yrd Mat Min Sub Rec Scr Fac Ext Cet Arc Hub Fac Upp Upp Zhi Pro Fac Was Fac Res Tes Res Qua Sec Distress Signals 37 | . 1 . . . . 1 2 2 . 2 . . . . . . . 4 6 7 . 4 8 Communications Jammed 1 | . . . . . . . . . . . . . . . 1 . . . . . . . . Distress Signals . | . . . . . . . . . . . . . . . . . . . . . . . . Times Spotted 717 | 1 28 5 19 . . 18 77 17 14 29 13 34 13 . 22 41 6 33 41 39 10 68 189 Peak Tracking Total 15 | 1 4 3 4 . . 5 13 5 1 5 6 9 5 . 5 11 6 6 12 5 2 10 15 Tactical Retreats 72 | . 1 . 3 . . 2 9 1 . . 1 13 4 . 2 8 1 3 5 5 . 12 2 ECM-based Alert Blocks 26 | . . . . . . . . . . . . . . . . 26 . . . . . . . Traps | -11 -10 -10 -10 -9 -9 -6 -6 -6 -6 -6 -5 -5 -5 -5 -4 -4 -4 -4 -3 -3 -2 -2 -2 ------- Run | Yrd Mat Min Sub Rec Scr Fac Ext Cet Arc Hub Fac Upp Upp Zhi Pro Fac Was Fac Res Tes Res Qua Sec Traps Triggered 9 | . 1 . 1 . . 1 1 . . . . . . . . 1 . . . 1 1 1 1 Indirectly . | . . . . . . . . . . . . . . . . . . . . . . . . Trap Hack Attempts 1 | . . . . . . . 1 . . . . . . . . . . . . . . . . Triggered . | . . . . . . . . . . . . . . . . . . . . . . . . Disarmed . | . . . . . . . . . . . . . . . . . . . . . . . . Reprogrammed 5 | . . . . . . . 1 . . . . . . . . . . . . . . 4 . Reused 7 | . . . . . . . 1 . . . . 3 1 . 2 . . . . . . . . Traps Extracted . | . . . . . . . . . . . . . . . . . . . . . . . . Installed 9 | . . . . . . . . . . . . 3 1 . 5 . . . . . . . . Triggered 7 | . . . . . . . 1 . . . . 3 1 . 2 . . . . . . . . Most Traps Carried 13 | . . . . . . . . . . . . 4 13 13 12 3 . . . . . . . Machines | -11 -10 -10 -10 -9 -9 -6 -6 -6 -6 -6 -5 -5 -5 -5 -4 -4 -4 -4 -3 -3 -2 -2 -2 ---------- Run | Yrd Mat Min Sub Rec Scr Fac Ext Cet Arc Hub Fac Upp Upp Zhi Pro Fac Was Fac Res Tes Res Qua Sec Machines Disabled 61 | . 2 . 1 1 . 1 5 1 4 8 2 . . . . . . 4 1 8 3 9 11 Max in Single Turn 1 | . 1 . 1 1 . . 1 1 1 1 1 . . . . . . 1 1 1 1 1 1 Garrison Access 5 | . . . . . . 1 . . . 1 1 . . . . . . . . . 1 . 1 Network Hub 2 | . . . . . . . . . . 2 . . . . . . . . . . . . . Machines Repaired . | . . . . . . . . . . . . . . . . . . . . . . . . Machines Dismantled . | . . . . . . . . . . . . . . . . . . . . . . . . Machines Sabotaged . | . . . . . . . . . . . . . . . . . . . . . . . . Overloaded Fab Kills . | . . . . . . . . . . . . . . . . . . . . . . . . Hacking | -11 -10 -10 -10 -9 -9 -6 -6 -6 -6 -6 -5 -5 -5 -5 -4 -4 -4 -4 -3 -3 -2 -2 -2 --------- Run | Yrd Mat Min Sub Rec Scr Fac Ext Cet Arc Hub Fac Upp Upp Zhi Pro Fac Was Fac Res Tes Res Qua Sec Machines Accessed 137 | . 10 . 2 10 6 19 14 3 . 6 8 1 . 9 1 4 . 3 8 11 4 8 10 Terminals 75 | . 7 . . 5 . 9 13 3 . 5 4 . . . 1 2 . 1 3 7 2 6 7 Fabricators 2 | . . . . . . 1 . . . . . . . . . . . . . 1 . . . Repair Stations 4 | . 1 . . . . 1 . . . . 1 . . . . . . . . . . 1 . Recycling Units 19 | . 2 . . 5 . 5 1 . . . . . . . . 2 . 1 2 . 1 . . Scanalyzers 11 | . . . . . . 1 . . . . 1 . . . . . . . 3 3 . 1 2 Garrison Access 8 | . . . . . . 2 . . . 1 2 . . . . . . 1 . . 1 . 1 Total Hacks 568 | . 29 . 4 22 51 57 35 14 . 26 53 1 . 48 1 26 . 14 34 53 26 36 38 Successful 355 | . 17 . 4 12 51 32 20 4 . 17 30 1 . 48 1 17 . 5 20 24 12 24 16 Failed 208 | . 12 . . 10 . 24 14 10 . 8 23 . . . . 9 . 9 13 28 14 12 22 Catastrophic 33 | . 2 . . 1 . 4 1 2 . 1 . . . . . 2 . 2 5 9 1 1 2 Database Lockouts 5 | . . . . . . 1 1 . . 1 . . . . . . . . 1 1 . . . Manual 133 | . 22 . . 16 . 24 10 1 . 2 5 . . . . 8 . 8 5 10 17 1 4 Terminals 319 | . 24 . . 15 . 32 32 14 . 25 26 . . . 1 23 . 9 12 34 22 25 25 Fabricators 10 | . . . . . . 6 . . . . . . . . . . . . . 4 . . . Repair Stations 22 | . 3 . . . . 3 . . . . 9 . . . . . . . . . . 7 . Recycling Units 32 | . 2 . . 7 . 11 3 . . . . . . . . 3 . 1 2 . 3 . . Scanalyzers 64 | . . . . . . 3 . . . . 12 . . . . . . . 20 15 . 4 10 Garrison Access 17 | . . . . . . 2 . . . 1 6 . . . . . . 4 . . 1 . 3 Terminal Hacks 261 | . 7 . 4 6 51 20 18 4 . 16 12 1 . 48 1 14 . 2 5 15 9 18 10 Record 124 | . 1 . 3 1 45 8 5 4 . 9 4 . . 36 1 1 . . . 2 . 4 . Part Schematic 12 | . 2 . . . . . . . . . 1 . . 4 . 2 . . . 1 . 2 . Robot Schematic 1 | . . . . . . 1 . . . . . . . . . . . . . . . . . Robot Analysis 16 | . 2 . . 1 6 1 . . . . . . . 4 . . . . . . 2 . . Prototype ID Bank 10 | . 1 . . 1 . 1 . . . . . . . 4 . . . . 1 2 . . . Open Door 10 | . . . . . . . 8 . . . . 1 . . . . . . . . . . 1 Branch Access Points 3 | . . . . . . . . . . . . . . . . . . . 1 . 1 1 . Machine Index 1 | . . . . . . . . . . . 1 . . . . . . . . . . . . Terminal Index 7 | . 1 . . 1 . 1 . . . . . . . . . 1 . 1 . . . 1 1 Fabricator Index 1 | . . . . . . . . . . . . . . . . . . . 1 . . . . Recycling Unit Index 2 | . . . . . . 1 . . . . 1 . . . . . . . . . . . . Garrison Index 1 | . . . . . . . . . . . . . . . . 1 . . . . . . . Alert Level 11 | . . . . . . 1 1 . . 3 . . . . . 1 . . 1 . 1 2 1 Unreport Threat 8 | . . . . . . 1 . . . 1 . . . . . 1 . . . 1 . 3 1 Locate Traps 14 | . . . . . . 2 1 . . 1 1 . . . . 1 . . 1 3 2 1 1 Reprogram Traps 1 | . . . . . . . . . . . . . . . . . . . . . . 1 . Dispatch Records 3 | . . . . . . 2 . . . 1 . . . . . . . . . . . . . Security Status 2 | . . . . . . . . . . . . . . . . 1 . . . 1 . . . Surveillance Status 1 | . . . . . . . . . . . . . . . . 1 . . . . . . . Patrol Status 2 | . . . . . . . . . . . . . . . . 1 . . . 1 . . . Transport Status 1 | . . . . . . . . . . . . . . . . 1 . . . . . . . Reinforcement Status 1 | . . . . . . . 1 . . . . . . . . . . . . . . . . Recall Investigation 1 | . . . . . . . 1 . . . . . . . . . . . . . . . . Recall Extermination 3 | . . . . . . . . . . . 1 . . . . . . . . 2 . . . Recall Reinforcements 1 | . . . . . . . 1 . . . . . . . . . . . . . . . . Hauler Manifests 6 | . . . . 1 . 1 . . . . 1 . . . . 1 . 1 . . . . 1 Registered Components 2 | . . . . . . . . . . . . . . . . . . . . . 1 1 . Registered Prototypes 4 | . . . . . . . . . . . 1 . . . . 1 . . . . 1 1 . Zone Layout 7 | . . . . 1 . . . . . 1 1 . . . . . . . . . 1 1 2 Proto ID Catalog 1 | . . . 1 . . . . . . . . . . . . . . . . . . . . Protovariant Controls 2 | . . . . . . . . . . . . . . . . . . . . 2 . . . Activate Exoskeleton 2 | . . . . . . . . . . . . . . . . . . . . . . . 2 Fabricator Hacks 3 | . . . . . . 1 . . . . . . . . . . . . . 2 . . . Network Status 3 | . . . . . . 1 . . . . . . . . . . . . . 2 . . . Repair Station Hacks 11 | . 2 . . . . 2 . . . . 5 . . . . . . . . . . 2 . Scan Component 6 | . 1 . . . . 1 . . . . 3 . . . . . . . . . . 1 . Repair 5 | . 1 . . . . 1 . . . . 2 . . . . . . . . . . 1 . Recycling Unit Hacks . | . . . . . . . . . . . . . . . . . . . . . . . . Scanalyzer 38 | . . . . . . . . . . . 12 . . . . . . . 13 6 . 3 4 Insert Component 5 | . . . . . . . . . . . 3 . . . . . . . 2 . . . . Analyze 8 | . . . . . . . . . . . 5 . . . . . . . 3 . . . . Retrieve Study 25 | . . . . . . . . . . . 4 . . . . . . . 8 6 . 3 4 Garrison Access Hacks 4 | . . . . . . . . . . 1 1 . . . . . . . . . 1 . 1 Seal Access 4 | . . . . . . . . . . 1 1 . . . . . . . . . 1 . 1 Unauthorized Hacks 38 | . 8 . . 6 . 9 2 . . . . . . . . 3 . 3 2 1 2 1 1 Terminals 13 | . 6 . . . . 1 1 . . . . . . . . . . 2 . . 1 1 1 Assimilate 4 | . . . . . . 1 . . . . . . . . . . . 1 . . . 1 1 Botnet 4 | . 1 . . . . . 1 . . . . . . . . . . 1 . . 1 . . Skim 5 | . 5 . . . . . . . . . . . . . . . . . . . . . . Fabricators 3 | . . . . . . 2 . . . . . . . . . . . . . 1 . . . Liberate 1 | . . . . . . 1 . . . . . . . . . . . . . . . . . Haulers 2 | . . . . . . 1 . . . . . . . . . . . . . 1 . . . Repair Stations . | . . . . . . . . . . . . . . . . . . . . . . . . Recycling Units 21 | . 2 . . 6 . 5 1 . . . . . . . . 3 . 1 2 . 1 . . Recyclers 2 | . . . . 1 . . . . . . . . . . . 1 . . . . . . . Tunnel 8 | . 2 . . 5 . 1 . . . . . . . . . . . . . . . . . Fedlink 11 | . . . . . . 4 1 . . . . . . . . 2 . 1 2 . 1 . . Scanalyzers 1 | . . . . . . 1 . . . . . . . . . . . . . . . . . Extract 1 | . . . . . . 1 . . . . . . . . . . . . . . . . . Garrison Access . | . . . . . . . . . . . . . . . . . . . . . . . . Data Cores Recovered 3 | . . . . . . . . . . 1 . . . . . . . . . . 1 1 . Used . | . . . . . . . . . . . . . . . . . . . . . . . . Hacking Detections 82 | . 8 . . 5 . 13 9 3 . 4 7 . . . . 2 . 2 5 10 2 4 8 Full Trace Events 9 | . . . . 2 . . 1 2 . 1 . . . . . . . 1 1 1 . . . Feedback Events . | . . . . . . . . . . . . . . . . . . . . . . . . Feedback Blocked . | . . . . . . . . . . . . . . . . . . . . . . . . Robot Schematics Acquired 4 | . . . . . . 1 . . . . . . . . . . . . . 3 . . . Robots Built . | . . . . . . . . . . . . . . . . . . . . . . . . Authchips . | . . . . . . . . . . . . . . . . . . . . . . . . Time . | . . . . . . . . . . . . . . . . . . . . . . . . Total Robot Build Rating . | . . . . . . . . . . . . . . . . . . . . . . . . Part Schematics Acquired 29 | . 2 . . . . 6 . . . . 4 . . 4 . 2 . . 1 8 . 2 . Parts Built . | . . . . . . . . . . . . . . . . . . . . . . . . Authchips . | . . . . . . . . . . . . . . . . . . . . . . . . Time . | . . . . . . . . . . . . . . . . . . . . . . . . Total Part Build Rating . | . . . . . . . . . . . . . . . . . . . . . . . . Part Studies Acquired 24 | . . . . . . . . . . . 3 . . . . . . . 8 6 . 3 4 Parts Repaired 4 | . 1 . . . . 1 . . . . 2 . . . . . . . . . . . . Time 148 | . 26 . . . . 38 . . . . 60 . . . . . . . . . . 24 . Parts Recycled . | . . . . . . . . . . . . . . . . . . . . . . . . Recycled Matter . | . . . . . . . . . . . . . . . . . . . . . . . . Retrieved Matter . | . . . . . . . . . . . . . . . . . . . . . . . . Retrieved Components . | . . . . . . . . . . . . . . . . . . . . . . . . Parts Scanalyzed 4 | . . . . . . . . . . . 3 . . . . . . . 1 . . . . Part Schematics Acquired 4 | . . . . . . . . . . . 3 . . . . . . . 1 . . . . Parts Damaged . | . . . . . . . . . . . . . . . . . . . . . . . . Bothacking | -11 -10 -10 -10 -9 -9 -6 -6 -6 -6 -6 -5 -5 -5 -5 -4 -4 -4 -4 -3 -3 -2 -2 -2 ------------ Run | Yrd Mat Min Sub Rec Scr Fac Ext Cet Arc Hub Fac Upp Upp Zhi Pro Fac Was Fac Res Tes Res Qua Sec Used RIF Installer . | . . . . . . . . . . . . . . . . . . . . . . . . Robots Hacked 3 | . . . . . 2 . 1 . . . . . . . . . . . . . . . . Non-combat . | . . . . . . . . . . . . . . . . . . . . . . . . Combat 3 | . . . . . 2 . 1 . . . . . . . . . . . . . . . . Robot Hacks Applied 3 | . . . . . 2 . 1 . . . . . . . . . . . . . . . . parse_system 3 | . . . . . 2 . 1 . . . . . . . . . . . . . . . . Relay Couplers Released . | . . . . . . . . . . . . . . . . . . . . . . . . Fabnet Peak Effective % . | . . . . . . . . . . . . . . . . . . . . . . . . Robots Rewired 27 | . . . . . . 1 25 . . . . . . . . 1 . . . . . . . Allies Hacked 1 | . . . . . . . 1 . . . . . . . . . . . . . . . . Hacks Repelled . | . . . . . . . . . . . . . . . . . . . . . . . . Allies | -11 -10 -10 -10 -9 -9 -6 -6 -6 -6 -6 -5 -5 -5 -5 -4 -4 -4 -4 -3 -3 -2 -2 -2 -------- Run | Yrd Mat Min Sub Rec Scr Fac Ext Cet Arc Hub Fac Upp Upp Zhi Pro Fac Was Fac Res Tes Res Qua Sec Total Allies 75 | . . 2 . . 5 2 37 5 . . . . . . . 1 20 1 . . . 1 1 Largest Group 24 | . . 2 2 . 5 5 24 24 24 20 . . . . . 1 20 11 . . . 1 1 Highest-Rated Group 1180 | . . 43 43 . 235 235 904 1180 1180 943 . . . . . 47 735 445 . . . 45 45 Highest-Rated Ally 159 | . . 31 31 . 47 47 159 153 144 96 . . . . . 47 50 46 . . . 45 45 Total Orders 5 | . . . . . . . . . . 5 . . . . . . . . . . . . . EXPLORE 1 | . . . . . . . . . . 1 . . . . . . . . . . . . . RETURN 4 | . . . . . . . . . . 4 . . . . . . . . . . . . . Ally Attacks 848 | . . 8 4 . . 42 305 81 28 175 . . . . . 8 120 77 . . . . . Total Damage 21600 | . . 81 84 . . 784 5902 1526 434 5404 . . . . . 204 4881 2300 . . . . . Kills 144 | . . 3 2 . . 4 53 15 6 41 . . . . . 1 11 8 . . . . . Allies Corrupted 4 | . . . . . . . . . . 1 . . . . . . . 3 . . . . . Allies Melted 1 | . . . . . . . . . . 1 . . . . . . . . . . . . . Intel | -11 -10 -10 -10 -9 -9 -6 -6 -6 -6 -6 -5 -5 -5 -5 -4 -4 -4 -4 -3 -3 -2 -2 -2 ------- Run | Yrd Mat Min Sub Rec Scr Fac Ext Cet Arc Hub Fac Upp Upp Zhi Pro Fac Was Fac Res Tes Res Qua Sec Active Infowar (turns) 28132 | 9 1332 2 1315 1188 3437 1623 1528 436 325 586 679 1431 1298 698 2308 573 . 1132 1960 1788 788 2105 1591 Optics 12103 | . . . . . . 1598 1528 436 325 586 . . . . . . . . 1358 1788 788 2105 1591 Sensors 2806 | . . 2 . . . 304 15 . . . . 656 . . . . . . 1829 . . . . Zeronet 1202 | . . . . . . . . . . . . . . . . . . 1132 70 . . . . Terrain 3458 | . . . . . . . . . . . . 1431 1298 698 31 . . . . . . . . Structural 7604 | . . . . . . 58 268 . . . 458 . . . 1683 387 . . 1414 1691 513 1132 . Seismic 11628 | 9 1332 . 1315 1188 3437 1287 240 . . . 568 533 29 . . . . . 145 110 305 1130 . T.N.C. 773 | . . . . . . 773 . . . . . . . . . . . . . . . . . Machine Analysis 2419 | . . . . . . . . . . . . . . . . . . . . 1786 633 . . Cloaking 113 | . . . . . . . 113 . . . . . . . . . . . . . . . . Jamming 3354 | . . . . . . . . . . . . . 609 214 2272 259 . . . . . . . ECM 301 | . . . . . . 85 25 . . . . . . . . 186 . . . . . . 5 Robot Analysis Total 16 | . 2 . . 1 6 1 . . . . . . . 4 . . . . . . 2 . . Derelict Logs Recovered 10 | . . 2 1 . 4 . . . . . . . 1 . 2 . . . . . . . . Drone Launches 6 | . . . . . . . . . . 6 . . . . . . . . . . . . . Drone Recoveries 6 | . . . . . . . . . . 6 . . . . . . . . . . . . . Exploration | -11 -10 -10 -10 -9 -9 -6 -6 -6 -6 -6 -5 -5 -5 -5 -4 -4 -4 -4 -3 -3 -2 -2 -2 ------------- Run | Yrd Mat Min Sub Rec Scr Fac Ext Cet Arc Hub Fac Upp Upp Zhi Pro Fac Was Fac Res Tes Res Qua Sec Turns Passed 38610 | 152 2033 735 3810 1188 7391 1623 1528 453 325 598 746 1563 1348 698 2375 842 975 1425 2107 1788 788 2150 1969 Spaces Moved 23135 | 87 1020 425 2098 456 4168 1099 843 227 166 365 481 840 940 271 1022 449 646 812 1346 755 342 1807 2470 Core 412 | 15 . . . . 200 . . . . . . . . . . . 16 99 82 . . . . Treads 8918 | . 947 425 2098 456 1306 . . . . . . 97 . . . 2 449 713 959 755 342 369 . Legs 8301 | 72 73 . . . 2662 1099 843 227 166 365 481 743 643 165 . . . . . . . . 762 Wheels 1843 | . . . . . . . . . . . . . 297 106 1022 418 . . . . . . . Hover 3177 | . . . . . . . . . . . . . . . . 29 181 . . . . 1438 1529 Flight 482 | . . . . . . . . . . . . . . . . . . . 305 . . . 177 Fastest Speed 30 | 50 120 160 160 240 50 122 122 122 122 120 111 111 108 205 145 80 40 50 32 155 170 38 30 Average Speed 136 | 107 157 160 170 240 166 122 129 124 122 121 123 125 126 235 213 132 128 141 131 161 170 66 51 Slowest Speed 700 | 120 160 160 240 240 700 130 192 195 122 122 190 240 220 525 235 240 250 155 167 197 170 170 160 Overloaded Moves . | . . . . . . . . . . . . . . . . . . . . . . . . Propulsion Burnouts . | . . . . . . . . . . . . . . . . . . . . . . . . Robots Hopped 9 | . . . . . . . . . . . . . . . . . . . 3 . . . 6 Potential Cave-ins 9 | . . . 3 . . . . . . . . . . . . . . . 3 . . . 3 Cave-ins Triggered . | . . . . . . . . . . . . . . . . . . . . . . . . Teleports 83 | . . . . . . . . . . . . . . . . . . . . . . . 83 Spacefolds 1 | . . . . . . . . . . . . . . . . . . . . . . . 1 Exploration Rate (%) 68 | 5 97 100 95 97 96 41 96 85 93 52 18 83 93 62 96 8 96 20 43 92 15 75 80 Regions Visited 23 Branch Regions 15 Pre-discovered Areas 21 | . 3 1 1 5 4 2 . . . . . . . 3 2 . . . . . . . . Known Exits Taken 10 | . . 1 . . . 1 . . . 1 1 1 1 . . . . 1 1 1 1 . . Unknown Exits Taken 11 | 1 1 . 1 1 1 . 1 1 1 . . . . 1 1 . . . . . . 1 . Scrap Searched 26 | . . 1 6 . 10 . . . . . . 4 4 . 1 . . . . . . . . Spaces Dug 258 | . 48 . 6 16 . 16 5 9 16 8 12 10 7 . 5 11 . 19 7 20 13 2 28 Terrain Destroyed 877 | . 162 . 49 24 . 19 13 12 35 28 22 24 14 . 36 41 5 217 10 47 19 42 58 Melee 67 | . . . . . . 15 3 9 . . 8 4 1 . 1 . . . 3 . . . 23 Projectile 406 | . 3 . 11 24 . 3 10 3 35 26 4 20 13 . 35 39 5 43 7 47 19 42 17 AOE 403 | . 159 . 38 . . . . . . 2 10 . . . . 2 . 174 . . . . 18 Terrain Rammed . | . . . . . . . . . . . . . . . . . . . . . . . . Walls Destroyed . | . . . . . . . . . . . . . . . . . . . . . . . . Machines Disabled . | . . . . . . . . . . . . . . . . . . . . . . . . Actions | -11 -10 -10 -10 -9 -9 -6 -6 -6 -6 -6 -5 -5 -5 -5 -4 -4 -4 -4 -3 -3 -2 -2 -2 --------- Run | Yrd Mat Min Sub Rec Scr Fac Ext Cet Arc Hub Fac Upp Upp Zhi Pro Fac Was Fac Res Tes Res Qua Sec Total 28183 | 121 1318 467 2252 511 4634 1276 1115 368 232 448 596 1259 1063 338 1150 620 772 996 1570 1112 485 2511 2969 Wait 2179 | 14 147 18 26 15 328 37 85 100 12 14 65 298 40 23 25 16 86 39 15 114 69 399 194 Move 23096 | 86 1019 424 2097 455 4167 1098 842 226 165 364 480 839 939 270 1021 449 645 811 1339 754 341 1806 2459 Hop 7 | . . . . . . . . . . . . . . . . . . . 3 . . . 4 Pick Up 383 | 3 21 3 29 2 65 20 5 2 5 7 8 21 28 11 11 20 . 10 35 25 7 21 24 Fast Attach 308 | 6 4 2 3 . 7 11 4 5 1 . 5 4 4 10 4 8 20 13 45 32 6 37 77 Attach 168 | . 4 . 4 . 3 11 1 1 2 3 3 14 12 3 13 19 . 7 9 12 3 21 23 Detach 36 | . . . . . . 4 . . . . 1 2 5 1 3 2 . 4 4 6 . . 4 Swap 176 | 1 16 2 10 . 1 17 28 8 3 15 10 5 1 1 3 3 . 4 13 6 7 19 3 Drop 537 | . 14 5 13 2 61 21 9 8 6 8 6 23 11 19 21 37 12 25 41 48 13 65 69 Fire 891 | 11 93 7 68 37 . 13 30 9 37 37 4 21 11 . 43 56 9 83 58 115 39 93 17 Melee 364 | . . . . . 2 43 106 9 1 . 14 29 11 . 1 1 . . 8 . . 50 89 Ram 1 | . . . . . . . . . . . . . . . . . . . . . . . 1 Kick . | . . . . . . . . . . . . . . . . . . . . . . . . Crush 1 | . . 1 . . . . . . . . . . . . . . . . . . . . . Escape Stasis 9 | . . . . . . . 4 . . . . . . . . . . . . . . . 5 Rewire 15 | . . 5 . . . 1 . . . . . . . . . 9 . . . . . . . Trap 10 | . . . . . . . 1 . . . . 3 1 . 5 . . . . . . . . Miscellaneous 2 | . . . 2 . . . . . . . . . . . . . . . . . . . . Route ------- -11/Scrapyard -10/Materials (discovered 6 exits: *Mat x3 / [*Min x2] / *Sub) -10/Mines (discovered 3 exits: *Mat x2 / *Sub) -10/Subcaves (discovered 3 exits: *Mat x2 / *Rec) -9/Recycling (discovered 2 exits: [*Fac] / *Scr) -9/Scraptown (discovered 2 exits: *Fac x2) -6/Factory (discovered 7 exits: *Fac x3 / *Low x2 / *Ext x2) -6/Extension (discovered 2 exits: *Fac / *Cet) -6/Cetus (discovered 2 exits: *Fac / *Arc) -6/Archives (discovered 3 exits: *Fac / *Hub x2) -6/Hub_04(d) (discovered 3 exits: *Fac x3) -5/Factory (discovered 2 exits: *Upp x2) -5/Upper Caves -5/Upper Caves (discovered 2 exits: *Fac / *Zhi) -5/Zhirov -4/Proximity Caves -4/Factory (discovered 2 exits: Res / Upp) -4/Waste -4/Factory -3/Research (discovered 4 exits: *Res x2 / *Tes x2) -3/Testing -2/Research (discovered 3 exits: Acc / *Qua x2) -2/Quarantine (discovered 2 exits: *Sec / [*Frg]) -2/Section 7 History --------- Turn | Location | Event 2 | -11/Scrapyard | Met Revision 17 90 | -11/Scrapyard | Discovered new exit (range 8) 153 | -11/Scrapyard | Entered Materials 246 | -10/Materials | Discovered new exit (range 14) 301 | -10/Materials | Build established: Mutant 472 | -10/Materials | Discovered new exit (range 3) 663 | -10/Materials | Discovered new exit (range 12) 987 | -10/Materials | Discovered new exit (range 5) 1299 | -10/Materials | Discovered new exit (range 16) 1412 | -10/Materials | Identified exit to Materials 1530 | -10/Materials | Learned Storage interactive machine intel 1572 | -10/Materials | Learned location of Recycling (-9) 1646 | -10/Materials | Learned location of 2 exits from Mines 1837 | -10/Materials | Repaired Lgt. Treads 2186 | -10/Materials | Entered Mines 2188 | -10/Mines | Identified exit to Subcaves 2246 | -10/Mines | Found a damaged Exp. Sensor Array with a note attached 2249 | -10/Mines | Found Prototype Device 2249 | -10/Mines | Identified Exp. Sensor Array 2458 | -10/Mines | Found a Scrap Suit stashed away for nefarious purposes 2658 | -10/Mines | Learned location of Zion (-7) 2676 | -10/Mines | Learned 2 Materials zone layouts 2921 | -10/Mines | Entered Subcaves 2921 | -10/Subcaves | Accompanied by 2 allies 2922 | -10/Subcaves | Identified exit to Materials 2926 | -10/Subcaves | A swath of the cavern ceiling suddenly collapsed 2926 | -10/Subcaves | Led the pair of lost Derelicts to an unsafe place 3450 | -10/Subcaves | Shifting Twisted Machinery released Sub. Beam Cannon 3460 | -10/Subcaves | Shifting Twisted Machinery released Sub. Monowheel 3574 | -10/Subcaves | A swath of the cavern ceiling suddenly collapsed 3801 | -10/Subcaves | Shifting Twisted Machinery released Flamer 3836 | -10/Subcaves | Shifting Twisted Machinery released Sub. Laser 4327 | -10/Subcaves | Visited 4L-MR0's lab 4350 | -10/Subcaves | Found Cargo Legs 5122 | -10/Subcaves | Discovered new exit (range 9) 5127 | -10/Subcaves | Core integrity fell below 50% 5383 | -10/Subcaves | Visited Clippyterm 5388 | -10/Subcaves | Learned Factory emergency access door positions 5388 | -10/Subcaves | Learned Factory garrison access intel 6731 | -10/Subcaves | Entered Recycling 7224 | -9/Recycling | Discovered new exit (range 6) 7460 | -9/Recycling | Scanned before Scraplab entrance 7891 | -9/Recycling | Entered Scraplab 7912 | -9/Recycling | Discovered new exit (range 3) 7919 | -9/Recycling | Entered Scraptown 8075 | -9/Scraptown | Heard Great Nut preacher, LISTEN AND RECITE! 8198 | -9/Scraptown | Visited The Evicted 8358 | -9/Scraptown | Scanned Subdweller tech in exchange for log data 8362 | -9/Scraptown | Learned Research emergency access door positions 8365 | -9/Scraptown | Learned location of Warlord (-4) 8367 | -9/Scraptown | Learned location of 1 exit from Factory 8370 | -9/Scraptown | Learned 8 Research zone layouts 8394 | -9/Scraptown | Discovered new exit (range 11) 9221 | -9/Scraptown | Visited Symbiants 9295 | -9/Scraptown | Visited Shadow of the Wyrm 9367 | -9/Scraptown | Visited UFD Registry 9367 | -9/Scraptown | Registered with UFD as "Railfunk" 9401 | -9/Scraptown | Visited Fellowship of the Rings 9480 | -9/Scraptown | Visited Awakened 9540 | -9/Scraptown | Visited Bundlers 9670 | -9/Scraptown | Visited Red Mages 10197 | -9/Scraptown | Visited Science Testing Area 10266 | -9/Scraptown | Visited DA-N13 Charitable Foundation 10276 | -9/Scraptown | Found DCF Scrap (29 items) 10374 | -9/Scraptown | Delivered Scrap Shield to a Scientist 10669 | -9/Scraptown | Visited Observation Area 10772 | -9/Scraptown | Visited Scrapoid Pod Storage 10827 | -9/Scraptown | Visited Derelict Rescue Squad 10899 | -9/Scraptown | Visited Analyses Database 10962 | -9/Scraptown | Visited Scrapoid Research Area 11041 | -9/Scraptown | Visited Cartography Club 11109 | -9/Scraptown | Found Surveybot 17 Chip 11156 | -9/Scraptown | Found Deep Structural Scanner 11162 | -9/Scraptown | Learned location of Archives (-6) 11162 | -9/Scraptown | Learned 8 Factory zone layouts 11162 | -9/Scraptown | Learned location of Upper Caves (-4) 11162 | -9/Scraptown | Learned 16 Research zone layouts 11162 | -9/Scraptown | Learned 12 Factory zone layouts 11162 | -9/Scraptown | Learned 4 Mines zone layouts 11162 | -9/Scraptown | Learned 4 Recycling zone layouts 11162 | -9/Scraptown | Learned 16 Lower Caves zone layouts 11162 | -9/Scraptown | Learned Research emergency access door positions 11162 | -9/Scraptown | Learned location of 1 exit from Factory 11162 | -9/Scraptown | Learned location of 1 exit from Upper Caves 11200 | -9/Scraptown | Attached Cargo Legs, gained temporary slots: Utility x2 11259 | -9/Scraptown | Found Scrapoid Pod 11922 | -9/Scraptown | Discovered new exit (range 5) 11973 | -9/Scraptown | Found DRS Beacon 12981 | -9/Scraptown | Scrapoid Pod released 09S07-D (x5) 15237 | -9/Scraptown | Met Optimus 15237 | -9/Scraptown | Accepted into 0bPrime 15310 | -9/Scraptown | Entered Factory 15310 | -6/Factory | Accompanied by 5 allies 15310 | -6/Factory | Evolved 8 slots: Propulsion x3, Utility x5 15311 | -6/Factory | Identified exit to Lower Caves 15312 | -6/Factory | Identified exit to Factory 15312 | -6/Factory | Identified exit to Extension 15314 | -6/Factory | Loaded intel: 4 garrison access locations 15381 | -6/Factory | Loaded intel: 8 recycling unit locations 15634 | -6/Factory | Repaired Hvy. Armor Plating 15671 | -6/Factory | Learned location of Protoforge (-2) 15749 | -6/Factory | Build established: Scavenger-Mutant 16456 | -6/Factory | Build established: Hacker-Mutant 16881 | -6/Factory | Central database locked down 16889 | -6/Factory | Discovered exit to Extension (range 20) 16933 | -6/Factory | Entered Extension 16942 | -6/Extension | Disrupted transfer network 17307 | -6/Extension | Lost 5 allies 17381 | -6/Extension | Rescued a captive Derelict 17439 | -6/Extension | Rescued A7 17480 | -6/Extension | Central database locked down 17498 | -6/Extension | Rescued a captive Derelict 17499 | -6/Extension | Rescued a captive Derelict 17588 | -6/Extension | Rescued a captive Derelict 17589 | -6/Extension | Rescued a captive Derelict 17629 | -6/Extension | Spotted B-75 Beast 17634 | -6/Extension | Rescued a captive Derelict 17688 | -6/Extension | Spotted B-75 Beast 17691 | -6/Extension | Destroyed B-75 Beast 17703 | -6/Extension | Allies destroyed B-75 Beast 17940 | -6/Extension | Rescued a captive Derelict 17942 | -6/Extension | Rescued a captive Derelict 17983 | -6/Extension | First assault squad dispatched 18058 | -6/Extension | Build established: Commander-Mutant 18074 | -6/Extension | Rescued a captive Derelict 18077 | -6/Extension | Rescued a captive Derelict 18092 | -6/Extension | Lost 6 allies 18101 | -6/Extension | Loaded intel: 1 recycling unit location 18147 | -6/Extension | Rescued a captive Derelict 18165 | -6/Extension | Discovered exit to Factory (range 10) 18167 | -6/Extension | Discovered new exit (range 6) 18461 | -6/Extension | Entered Cetus 18461 | -6/Cetus | Accompanied by 23 allies (A7) 18466 | -6/Cetus | Acquired a Cetus Manufacturing Module code from A7 18478 | -6/Cetus | Spotted Cetus Guard 18479 | -6/Cetus | Spotted Cetus Guard 18481 | -6/Cetus | Spotted Cetus Guard 18485 | -6/Cetus | Spotted Cetus Guard 18486 | -6/Cetus | Allies destroyed Cetus Guard 18492 | -6/Cetus | Allies destroyed Cetus Guard 18524 | -6/Cetus | Lost 3 allies 18609 | -6/Cetus | Escorted A7 to Cetus Mainframe 18641 | -6/Cetus | Discovered new exit (range 22) 18661 | -6/Cetus | Started Cetus Manufacturing Module 18686 | -6/Cetus | Manufactured an Enhanced Grunt 18698 | -6/Cetus | Spotted Cetus Guard 18698 | -6/Cetus | Spotted Cetus Guard 18698 | -6/Cetus | Spotted Cetus Guard 18702 | -6/Cetus | Spotted Cetus Guard 18702 | -6/Cetus | Discovered exit to Factory (range 22) 18706 | -6/Cetus | Allies destroyed Cetus Guard 18706 | -6/Cetus | Allies destroyed Cetus Guard 18711 | -6/Cetus | Manufactured an Enhanced Grunt 18720 | -6/Cetus | Allies destroyed Cetus Guard 18733 | -6/Cetus | Met Revision 17 18736 | -6/Cetus | Manufactured an Enhanced Grunt 18761 | -6/Cetus | Manufactured an Enhanced Grunt 18786 | -6/Cetus | Manufactured an Enhanced Grunt 18914 | -6/Cetus | Entered Archives 18914 | -6/Archives | Accompanied by 24 allies (A7) 18919 | -6/Archives | Received a hacking code to weaken MAIN.C 18977 | -6/Archives | Lost 3 allies 18977 | -6/Archives | Unable to access archive contents 18984 | -6/Archives | Discovered exit to Factory (range 19) 18988 | -6/Archives | Discovered new exit (range 17) 19010 | -6/Archives | Discovered new exit (range 15) 19239 | -6/Archives | Entered Hub_04(d) 19239 | -6/Hub_04(d) | Accompanied by 20 allies 19400 | -6/Hub_04(d) | Central database locked down 19431 | -6/Hub_04(d) | Lost 4 allies 19461 | -6/Hub_04(d) | Disrupted transfer network 19520 | -6/Hub_04(d) | Discovered exit to Factory (range 21) 19526 | -6/Hub_04(d) | Lost 3 allies 19600 | -6/Hub_04(d) | Discovered exit to Factory (range 9) 19608 | -6/Hub_04(d) | Lost 7 allies 19665 | -6/Hub_04(d) | Lost 3 allies 19788 | -6/Hub_04(d) | Discovered exit to Factory (range 11) 19814 | -6/Hub_04(d) | Network Hub disabled 19814 | -6/Hub_04(d) | Spotted Lightning 19814 | -6/Hub_04(d) | Network Hub disabled 19817 | -6/Hub_04(d) | Spotted Lightning 19818 | -6/Hub_04(d) | Spotted Lightning 19819 | -6/Hub_04(d) | Attached CPS modules to Lightning. 19837 | -6/Hub_04(d) | Entered Factory 19837 | -5/Factory | Evolved 2 slots: Propulsion x1, Utility x1 19838 | -5/Factory | Identified exit to Upper Caves 19857 | -5/Factory | Lost 3 parts (2n1u) 20110 | -5/Factory | Build established: Scavenger-Mutant 20149 | -5/Factory | Repaired Arm. Leg 20185 | -5/Factory | Repaired Broken Arm. Leg 20413 | -5/Factory | Build established: Wizard-Mutant 20437 | -5/Factory | First assault squad dispatched 20583 | -5/Factory | Entered Upper Caves 20584 | -5/Upper Caves | Identified exit to Upper Caves 20585 | -5/Upper Caves | UFD Scientist delivered a prototype 20585 | -5/Upper Caves | Attracted the attention of an 0b10 checkpoint 20677 | -5/Upper Caves | Lost 3 parts (1p1u1w) 21067 | -5/Upper Caves | Build established: Scavenger-Assassin 21211 | -5/Upper Caves | Found Prototype Protection 21212 | -5/Upper Caves | Identified Enh. Scrap Shield 21705 | -5/Upper Caves | Build established: Scavenger-Mutant 22146 | -5/Upper Caves | Entered another Upper Caves area 22147 | -5/Upper Caves | Identified exit to Zhirov 22163 | -5/Upper Caves | Discovered new exit (range 16) 22211 | -5/Upper Caves | Lost 4 parts (2n2u) 22449 | -5/Upper Caves | Learned Factory trap positions 22485 | -5/Upper Caves | Build established: Mutant 22833 | -5/Upper Caves | Attracted the attention of an 0b10 checkpoint 23041 | -5/Upper Caves | Found Alien Artifact 23041 | -5/Upper Caves | Identified Core Expander 23041 | -5/Upper Caves | Installed Core Expander, added new Weapon slot 23494 | -5/Upper Caves | Entered Zhirov 23496 | -5/Zhirov | Discovered new exit (range 3) 23533 | -5/Zhirov | Met Zhirov 23574 | -5/Zhirov | Learned location of Quarantine (-2) 23574 | -5/Zhirov | Learned location of Command (-1) 23613 | -5/Zhirov | Zhirov requested help retrieving the SGEMP Prototype 23650 | -5/Zhirov | Found Alien Artifact 23650 | -5/Zhirov | Identified Integrated Dissipator 23650 | -5/Zhirov | Installed Integrated Dissipator, increased core heat dissipation (+20) 23832 | -5/Zhirov | Build established: Hauler-Mutant 23852 | -5/Zhirov | Found Alien Artifact 24192 | -5/Zhirov | Entered Proximity Caves 24289 | -4/Proximity Caves | Spotter reported a threat 24289 | -4/Proximity Caves | Spotter reported a threat 24342 | -4/Proximity Caves | Spotter reported a threat 24428 | -4/Proximity Caves | Spotter reported a threat 24503 | -4/Proximity Caves | Spotter reported a threat 24751 | -4/Proximity Caves | Lost 3 parts (1p2n) 25927 | -4/Proximity Caves | Attracted the attention of an 0b10 checkpoint 26089 | -4/Proximity Caves | Spotted B-86 Titan 26426 | -4/Proximity Caves | Discovered new exit (range 10) 26567 | -4/Proximity Caves | Entered Factory 26567 | -4/Factory | Evolved 2 slots: Power x1, Utility x1 26568 | -4/Factory | Identified exit to Research 26568 | -4/Factory | Identified exit to Upper Caves 26569 | -4/Factory | Loaded intel: 81 trap records 26574 | -4/Factory | Build established: Scavenger-Tank 26817 | -4/Factory | Search patrols dispatched 26886 | -4/Factory | Loaded intel: 8 recycling unit locations 27067 | -4/Factory | Search patrols dispatched 27075 | -4/Factory | Garrison activated, responded to threat 27121 | -4/Factory | Unchained authorized (DW-4LL) 27232 | -4/Factory | Build established: Hacker-Tank 27317 | -4/Factory | Search patrols dispatched 27370 | -4/Factory | DW-4LL burst out of a wall 27381 | -4/Factory | System corruption reached 10% 27409 | -4/Factory | Manually triggered Chute Trap 27409 | -4/Factory | Sucked down chute 27409 | -4/Factory | Entered Waste 27410 | -4/Waste | Met a frightened Derelict 27427 | -4/Waste | Lost 13 parts (3n7u3w) 27449 | -4/Waste | Spotted C-40 Crusher 27452 | -4/Waste | Spotted C-40 Crusher 27475 | -4/Waste | Spotted C-40 Crusher 27480 | -4/Waste | Spotted C-40 Crusher 27481 | -4/Waste | Spotted C-40 Crusher 27497 | -4/Waste | Warlord forces began an assault 27527 | -4/Waste | Allies destroyed C-40 Crusher 27530 | -4/Waste | Spotted C-40 Crusher 27533 | -4/Waste | Allies destroyed C-40 Crusher 27540 | -4/Waste | Allies destroyed C-40 Crusher 27542 | -4/Waste | Allies destroyed C-40 Crusher 27546 | -4/Waste | Allies destroyed C-40 Crusher 27561 | -4/Waste | Allies destroyed C-40 Crusher 27571 | -4/Waste | Lost 6 allies 27673 | -4/Waste | Build established: Mutant 28025 | -4/Waste | Discovered new exit (range 11) 28055 | -4/Waste | Build established: Scavenger-Tank 28384 | -4/Waste | Entered Factory 28384 | -4/Factory | Accompanied by 11 allies 28419 | -4/Factory | Unchained authorized (DW-4LL) 28659 | -4/Factory | DW-4LL burst out of a wall 28672 | -4/Factory | Allies destroyed DW-4LL 28677 | -4/Factory | Found Prototype Device 28677 | -4/Factory | Identified Zeronet Interface 28683 | -4/Factory | Garrison activated, responded to threat 28738 | -4/Factory | Lost 7 allies 28813 | -4/Factory | Lost 3 allies 29172 | -4/Factory | System corruption reached 30% 29243 | -4/Factory | Build established: Tank 29628 | -4/Factory | Loaded intel: 8 recycling unit locations 29748 | -4/Factory | Garrison activated, responded to threat 29801 | -4/Factory | Discovered exit to Research (range 16) 29805 | -4/Factory | Lost 12 parts (4n4u4w) 29809 | -4/Factory | Entered Research 29809 | -3/Research | Evolved 2 slots: Propulsion x1, Utility x1 29810 | -3/Research | Identified exit to Research 29810 | -3/Research | Identified exit to Testing 29920 | -3/Research | Core integrity fell below 50% 29958 | -3/Research | Lost 6 parts (2n2u2w) 30009 | -3/Research | Revision forces began assault on 0b10 30023 | -3/Research | Build established: Mutant 30263 | -3/Research | Met up with Revision 17++ 30334 | -3/Research | Build established: Scavenger-Mutant 30347 | -3/Research | Loaded intel: 5 recycling unit locations 30479 | -3/Research | Identified Transdimensional Reconstructor 30509 | -3/Research | Research terminal network offline 30693 | -3/Research | Lost 3 allies 30727 | -3/Research | Found Prototype Device 30728 | -3/Research | Identified Exp. Shield Generator 30994 | -3/Research | Build established: Scavenger-Tank 31038 | -3/Research | Central database locked down 31275 | -3/Research | Found Quantum Capacitor 31311 | -3/Research | Spotted Striker 31312 | -3/Research | Spotted Striker 31472 | -3/Research | Found Prototype Processor 31472 | -3/Research | Identified Spectral Analyzer 31515 | -3/Research | Spotted B-86 Titan 31809 | -3/Research | Spotted Striker 31901 | -3/Research | Spotted Striker 31904 | -3/Research | Spotted Striker 31915 | -3/Research | Spotted Striker 31916 | -3/Research | Entered Testing 31959 | -3/Testing | Protovariant out of control (PP-2MQ10OCWGY) 31959 | -3/Testing | Unleashed a protovariant (PP-2MQ10OCWGY) 32032 | -3/Testing | Garrison activated, responded to threat 32061 | -3/Testing | Lost 4 parts (2n2u) 32159 | -3/Testing | Found Portable AFG 32229 | -3/Testing | Discovered exit to Research (range 15) 32318 | -3/Testing | PP-2MQ10OCWGY assimilated allied G-67 Veteran 32331 | -3/Testing | PP-2MQ10OCWGY assimilated allied G-67 Veteran 32353 | -3/Testing | Spotted PP-2MQ10OCWGY 32354 | -3/Testing | Garrison activated, responded to threat 32607 | -3/Testing | Found Prototype Energy Cannon 32607 | -3/Testing | Identified Disintegrator 32656 | -3/Testing | Found Exp. Hacking Suite 32801 | -3/Testing | Spotted Alpha 7 32847 | -3/Testing | Destroyed Alpha 7 32883 | -3/Testing | Found Prototype Device 32883 | -3/Testing | Identified Adv. EM Shield 32966 | -3/Testing | Spotted Striker 32968 | -3/Testing | Spotted Striker 33007 | -3/Testing | Destroyed Striker 33091 | -3/Testing | Spotted Alpha 7 33186 | -3/Testing | Stole the SGEMP Prototype 33203 | -3/Testing | Destroyed Alpha 7 33331 | -3/Testing | Found Exp. Hacking Suite 33395 | -3/Testing | Build established: Hacker-Tank 33544 | -3/Testing | Found Prototype Device 33544 | -3/Testing | Identified Exp. Hardlight Generator 33584 | -3/Testing | Found Prototype Launcher 33584 | -3/Testing | Identified Containment Facilitator 33686 | -3/Testing | Central database locked down 33703 | -3/Testing | System corruption reached 10% 33704 | -3/Testing | Entered Research 33704 | -2/Research | Evolved 2 slots: Propulsion x1, Utility x1 33705 | -2/Research | Identified exit to Access 33734 | -2/Research | Identified exit to Quarantine 33853 | -2/Research | Found Prototype Launcher 33853 | -2/Research | Identified Gui. Micro-nuke Launcher 34043 | -2/Research | Loaded intel: 5 recycling unit locations 34492 | -2/Research | Entered Quarantine 34639 | -2/Quarantine | Found Alien Artifact 34639 | -2/Quarantine | Identified Terrabomb 34639 | -2/Quarantine | Used Terrabomb 34649 | -2/Quarantine | Cryocooling Duct disabled 34664 | -2/Quarantine | Ambient heat levels rising (+20) 34664 | -2/Quarantine | Non-combat units ordered to evacuate 34802 | -2/Quarantine | Found Alien Energy Cannon 34802 | -2/Quarantine | Identified Core Cannon 34839 | -2/Quarantine | Found Alien Reactor 34839 | -2/Quarantine | Identified Matter Drive 34939 | -2/Quarantine | Found Prototype Protection 34939 | -2/Quarantine | Identified Centrium Heavy Armor Plating 35074 | -2/Quarantine | Found Alien Artifact 35074 | -2/Quarantine | Identified Core Reset Matrix 35074 | -2/Quarantine | Used Core Reset Matrix 35078 | -2/Quarantine | Detected hypermatrix surge 35078 | -2/Quarantine | Sensed 14 artifacts in vicinity 35147 | -2/Quarantine | Found Sigix Broadsword 35410 | -2/Quarantine | Destroyed 11 combat bots 35424 | -2/Quarantine | Lost 8 parts (1p3n3u1w) 35479 | -2/Quarantine | Found Subatomic Replicator 35517 | -2/Quarantine | Used Subatomic Replicator to replicate Sigix Broadsword 35660 | -2/Quarantine | Spotted Fortress 35776 | -2/Quarantine | Build established: Hacker-Mutant 36242 | -2/Quarantine | Search patrols dispatched 36259 | -2/Quarantine | Core integrity fell below 50% 36279 | -2/Quarantine | Build established: Hacker-Tank 36344 | -2/Quarantine | Destroyed Fortress 36422 | -2/Quarantine | System corruption reached 10% 36638 | -2/Quarantine | Discovered new exit (range 6) 36638 | -2/Quarantine | Discovered new exit (range 6) 36642 | -2/Quarantine | Entered Section 7 36643 | -2/Section 7 | Detected hypermatrix surge 36643 | -2/Section 7 | Sensed 21 artifacts in vicinity 36655 | -2/Section 7 | Found Integrity Redistributor 36655 | -2/Section 7 | Used Integrity Redistributor, redistributed integrity to core (+196) 36676 | -2/Section 7 | Spotted S7 Guard 36678 | -2/Section 7 | Build established: Hacker-Mutant 36711 | -2/Section 7 | Found Integrated Thermoelectric Network 36711 | -2/Section 7 | Installed Integrated Thermoelectric Network, gained heat-energy exchange potential 36741 | -2/Section 7 | Found Unknown Device 36741 | -2/Section 7 | Identified Quantum Capacitor 36756 | -2/Section 7 | Found Integrated Reactor 36756 | -2/Section 7 | Installed Integrated Reactor, increased core energy generation (+10) 36883 | -2/Section 7 | Found Integrated Dissipator 36883 | -2/Section 7 | Installed Integrated Dissipator, increased core heat dissipation (+20) 36908 | -2/Section 7 | Spotted S7 Guard 36923 | -2/Section 7 | Found Navigation Efficiency Matrix 36923 | -2/Section 7 | Installed Navigation Efficiency Matrix, process failed with unexpected side effects 36928 | -2/Section 7 | Spotted S7 Guard 36941 | -2/Section 7 | Found Core Membrane 36941 | -2/Section 7 | Installed Core Membrane, gained immunity to corruption 36949 | -2/Section 7 | Spotted B-90 Cyclops 36951 | -2/Section 7 | Spotted S7 Guard 36957 | -2/Section 7 | Found Core Physics Calibrator 36980 | -2/Section 7 | Found Integrated Mediator 36980 | -2/Section 7 | Installed Integrated Mediator, increased core attachment efficiency 37010 | -2/Section 7 | Build established: Alien-Mutant 37036 | -2/Section 7 | Lost 7 parts (2n4u1w) 37092 | -2/Section 7 | Lost 7 parts (2p2n3u) 37133 | -2/Section 7 | Found Prototype Device 37133 | -2/Section 7 | Identified Exp. ECM Suite 37197 | -2/Section 7 | Found Prototype Device 37197 | -2/Section 7 | Identified Exp. Shield Generator 37204 | -2/Section 7 | Found Prototype Launcher 37204 | -2/Section 7 | Identified Hellfire Missile Launcher 37579 | -2/Section 7 | Found Spacefold Activator 38184 | -2/Section 7 | Core integrity fell below 20% 38189 | -2/Section 7 | Spotted Alpha 7 38189 | -2/Section 7 | Spotted Alpha 7 38200 | -2/Section 7 | Spotted B-99 Colossus 38216 | -2/Section 7 | Spotted Executioner 38219 | -2/Section 7 | Spotted Executioner 38226 | -2/Section 7 | Lost 6 parts (1p4n1u) 38233 | -2/Section 7 | Integrated with Sigix Exoskeleton 38286 | -2/Section 7 | Found LRC Insulator 38286 | -2/Section 7 | Installed LRC Insulator, 1 resistance modified: EM +25% 38287 | -2/Section 7 | Found LRC Inertial Stabilizer 38287 | -2/Section 7 | Installed LRC Inertial Stabilizer, increased mass support (+10) 38313 | -2/Section 7 | Found Integrated Dissipator 38313 | -2/Section 7 | Installed Integrated Dissipator, increased core heat dissipation (+20) 38328 | -2/Section 7 | Found Integrity Redistributor 38505 | -2/Section 7 | Scanned by Researcher 38506 | -2/Section 7 | Intercept squad dispatched 38506 | -2/Section 7 | Used Integrity Redistributor, redistributed integrity to core (+557) 38507 | -2/Section 7 | Sigix Exoskeleton integrity reduced to 80% 38507 | -2/Section 7 | Spotted Tracker 38508 | -2/Section 7 | Sigix Exoskeleton integrity reduced to 60% 38509 | -2/Section 7 | Sigix Exoskeleton integrity reduced to 40% 38511 | -2/Section 7 | Spotted Tracker 38521 | -2/Section 7 | Sigix Exoskeleton integrity reduced to 20% 38527 | -2/Section 7 | Build established: Alien-Sigix 38577 | -2/Section 7 | Intercept squad dispatched 38587 | -2/Section 7 | Spotted Tracker 38587 | -2/Section 7 | Spotted Tracker 38611 | -2/Section 7 | Exoskeleton Destroyed Last Messages --------------- 38593_ Acquired Cld. Antimatter Reactor. 38596_ Navigation matrix triggers involuntary quantum shift. 38600_ O-32 Director: "IFF HANDSHAKE FAILED. SECURING TERMINAL." 38600_ Penetrated by Slug. 38602_ Destroyed Unknown Reactor. 38602_ S-43 Plague destroyed. 38605_ Acquired 5 matter. 38608_ Destroyed Unknown Ballistic Gun. 38608_ Destroyed Unknown Flight Unit. 38611_ Sneak attack on O-32 Director. 38611_ Destroyed Unknown Hover Unit. 38611_ Destroyed Unknown Engine. 38611_ O-32 Director destroyed. 38611_ Sigix Exoskeleton destroyed. [Achievement: 10k Club] [Achievement: 20k Club] [Achievement: 30k Club] [Achievement: 40k Club] [Achievement: 50k Club] [Achievement: Achiever] Map ----- +----------------------------------------------------+ | ###??????????????????????????????????????????????? | | ####?????????????????????????????????????????????? | | ###??????????????????????????????????????????????? | | #??????????????????????????????????????????????? | | #??????????????????????????????????????????????? | | #??????????????????????????????????????????????? | | #??????????????????????????????????????????????? | | ???????????????????????#???????????????????????? | | ??????????????????###########??????????????????? | | ??????????????? ############# ???????????????? | | ??????????????? ############# ??????????????? | | ?????????????? # # ###### ####????????????? | | ????????????? # # ###### #####???????????? | | ???????????? # # ! ###### ######??????????? | | ??????????###### # * ###### #######???????? | | ?????????####### + ###### ########???? | | ???????? # # ###### ########?" | | ??????? [/ # ######+###### #########" | | ??????? [/ ! # ###### ##### ] ########" | | ??????# = + s !H ########" | | ?????## s [ # ########" | | ?????## # ######s##+###= !########" | | ?????##[ * ! # #### #############" | | #???### s # #### ! #############" | | #???### # #### Y%= =#############" | | #?? ######+##### #### ""X #############" | | ?? ### """sss #############" | | ?# ######+## ####### "T s #############" | | + ## # ####### """ s #############" | | ?# ## # ####### "" s =#############" | | # ## # ####### % #############" | | # ## # ########+########Y##########" | | ### ## # ## ! ### #####" | | ### ## # ## ### ""#####" | | ### ######### ## "" ### """##### | | ### m ## """ ### R"#####" | | ### ###### ##### T" ### """#####"" | | ### ###### ##### """ ###] ""#####""" | | ### ###### ##### "" ### #####""" | | ### ###### ##### ### #####""" | | ### ###### #########+#############+##### # | | ### ###### + | | ### ###### + | | ###/###### + | | # # + | | # """ # ### ##########/##### # | | + T" # ### #### ] #####""" | | # """ # ### #### #####""" | | # + ### #### """"""" #####""" | | # # ### #### """"""" #####"" | +----------------------------------------------------+ Best States ------------- Heat Dissipation 184 Coolant Potential 80 Energy Generation 78 Energy Capacity 1460 Matter Stores 800 Matter Capacity 800 Sight Range 24 Robot Scan Range 20 Terrain Scan Range 20 Terrain Scan Density 1210 ECM Strength 2 Jamming Range 14 Cloak Strength 2 Power Amplification 20 Additional Mass Support 9 Base Temperature (-) 200 EM Shielding 3 Corruption Block 14 Armor Coverage 1200 Resistance: KI 50 Resistance: TH 50 Resistance: EX 50 Resistance: EM 75 Resistance: I 50 Resistance: S 50 Resistance: P 50 Core Shielding 40 Propulsion Shielding 66 Utility Shielding 66 Phase Shifting 15 Evasion (%) 69 Melee Accuracy 8 Target Analysis 8 Armor Integrity Analysis 30 Recoil Reduction 8 Offensive Hacking 46 Defensive Hacking 24 Authchip Count 1 Item Schematics ----------------- None Robot Schematics ------------------ None Fabricated ------------ Nothing Repaired ---------- Lgt. Treads | 30% | -10/Materials Hvy. Armor Plating | 46% | -6/Factory Arm. Leg | 19% | -5/Factory Arm. Leg | 33% | -5/Factory | Broken Studied --------- Imp. Antigrav System | -2/Section 7 | Hacked Cmb. Antigrav System | -2/Section 7 | Hacked Lgt. Particle Reactor | -2/Section 7 | Hacked Impulse Thruster Array | -2/Section 7 | Hacked Alien Tech Used ----------------- Core Expander Integrated Dissipator Terrabomb Core Cannon Matter Drive Core Reset Matrix Sigix Broadsword Subatomic Replicator Integrity Redistributor Integrated Thermoelectric Network Integrated Reactor Navigation Efficiency Matrix Core Membrane Core Physics Calibrator Integrated Mediator Spacefold Activator Sigix Exoskeleton Sigix Sheargun LRC Insulator LRC Inertial Stabilizer Achievements -------------- 10k Club 20k Club 30k Club 40k Club 50k Club A New Friend Achiever Alien Roots Alien Tech Analysis Probe Artifact Hunter Beloved Bumper Bots Can't Touch This Collateral Damage Coming In Hot Construction Begets Destruction Cya! DATA ERROR: Steam Global Achievement% DIY Cooler Dangerous Findings Deadly Force Everything Is Under Control Ew, Corruption Explorer Fancy Inventory Fishing Tech Generalissimo Ghost 'Em GoHome() Hehehe Hey, That's Mine! Hornet's Nest Hulk Smash I Laugh At Your Crits I Spy I'm Back, Baby! Immobile And Lovin' It Insider Info Integration Complete Into The Breach It's Just You Item+ Knowing Is Half The Battle Leap Before You Look Look Less Dangerous Next Time Loot Taster Main Advantage Maximum Efficiency More Power To You Nope Omniscient Cartographer One Hack Too Far Ooh, Shiny! Overkill Part-time Mechanic Party Time Please Form A Line Prison Break Project G-00 Prolific Hacker Rampage Recruitment Drive Respectable Loadout Revising The Future Revolutionary Research Rockin' Loadout Safety First Shopping List Signature Confirmed Slippery One Storm Trooper Subspace Traveler Suspicious Suspicious By Nature System Compromised Tank Life The Better Part Of Valor The More The Merrier The Science Guy Thread The Needle Around The Corner Turtlemind Ultimate Loadout Universal Adapter We Are Legion We Love MA Wheee! Challenges ------------ None Game ------ Seed MassWarlordBox Manual? 0 Play Time 07:01:49 Cumulative 8.9 hours Start 2025.10.10 @ 23:48:15 End 2025.10.12 @ 02:41:17 Sessions 6 Manual Loads 0 Difficulty Rogue Special Mode None Game No. 2 Rogue 2 Adventurer 0 Explorer 0 Win Type - Total 0 Types 0/0/0/0/0/0/0/0/0/0 Lore% 21 Gallery% 23 Achievement% 28 Wizard Run 0 Options --------- Layout 0 ASCII 0 Keyboard 0 Movement Mouse Keybinds 0 Fullscreen 1 Font 24/Smallcaps Map View 183x50 Zoom Use 0% Tactical HUD 1 Map Filters NONE Filters NONE Steam 1 RUN: 9de8304d-ee4b-4cf6-9fcb-dba33ddbe484